Cogmind - Beta 13 @@@ ROGUE MODE // 2024.06.02 @ 05:35:22 Player: H3-RMN Result: Destroyed by A6 with Enhanced Force Lance Performance ------------- Evolutions (9) 4500 Regions Visited (37) 7400 Robots Destroyed (316) 1580 Value Destroyed (12047) 12047 Prototype IDs (320) 6400 Alien Tech Used (3) 600 Bonus (26943) 26943 TOTAL SCORE: 59470 Bonus ------- High Alert Combat Kills 991 Follower Combat Kills 902 Entered Garrisons 200 Network Hubs Disabled 600 Aligned with FarCom 300 Met Imprinter 300 Acquired ECA 300 Met Zhirov 300 Met Warlord at Base 500 MAIN.C Attacked Warlord 500 Met Warlord at Research 2000 Destroyed MAIN.C Guards 500 Met MAIN.C 5000 Destroyed MAIN.C Shell 5000 Destroyed MAIN.C 10000 Met Warlord at Command 2000 Met Architect 300 Destroyed A8 300 Friendly Fire -3050 Cogmind --------- Core Integrity 0/1600 Matter 88/300 Energy 100/100 System Corruption 0% Temperature Cool (0) Movement Core (50) Location -1/Access_0 Parts ------- > --- POWER (2) -------- (None) > --- PROPULSION (5) --- Experimental Biometal Heavy Treads > --- UTILITY (12) ----- (None) > --- WEAPON (6) ------- (None) > --- INVENTORY (5) ---- Advanced Phase Shifter Heavy Wave Gun Hypervelocity Linear Accelerator Peak State ------------ > --- POWER ------------ Vortex Chain Reactor > --- PROPULSION ------- Advanced Medium Treads Experimental Biometal Heavy Treads Enhanced Armored Heavy Treads > --- UTILITY ---------- Desublimator Experimental Power Amplifier Large Storage Unit Experimental Matter Compressor Advanced Launcher Guidance Computer Experimental Core Analyzer Experimental Core Analyzer Experimental Armor Integrity Analyzer Advanced Weapon Cycler Experimental Phase Shifter Graphene Brace AEGIS Remote Shield > --- WEAPON ----------- Heavy Wave Gun Heavy Dispersion Rifle Hypervelocity Linear Accelerator Point Singularity Launcher Point Singularity Launcher Point Singularity Launcher > --- INVENTORY -------- Zero-point Reactor Experimental Biometal Heavy Treads Experimental Biometal Heavy Treads Enhanced Armored Heavy Treads Experimental Matter Compressor Advanced Launcher Guidance Computer Matter Filter Advanced Phase Shifter Integrity Redistributor Point Singularity Launcher Point Singularity Launcher Point Singularity Launcher [Rating: 243] Favorites ----------- Power Micro Nuclear Core Engine Reinforced Ion Engine Power Core Micro Nuclear Core Reactor Micro Antimatter Reactor Propulsion Experimental Cesium-ion Thruster Treads Light Treads Leg Myomer Leg Wheel Wheel Hover Unit Combat Antigrav System Flight Unit Experimental Cesium-ion Thruster Utility Advanced Hacking Suite Device Advanced Gravity Neutralizer Storage Large Storage Unit Processor Machine Analyzer Hackware Advanced Hacking Suite Protection Improved Utility Shielding Weapon Point Singularity Launcher Energy Gun Cooled Pulse Rifle Energy Cannon Heavy Plasma Cannon Ballistic Gun Improved Assault Rifle Ballistic Cannon Magnetic Acceleration Cannon Launcher Point Singularity Launcher Special Weapon Plasma Cutter Impact Weapon Power Maul Slashing Weapon Longsword +1 Piercing Weapon Kinetic Spear Special Melee Weapon Improved Datajack Build | -11 -10 -10 -10 -9 -8 -8 -8 -7 -7 -7 -7 -7 -6 -6 -6 -6 -6 -6 -6 -6 -5 -5 -5 -5 -4 -4 -4 -4 -4 -4 -4 -3 -3 -2 -1 -1 -1 ------- Run | Yrd Mat Min Exi Min Mat Gar Mat Fac Was Fac Low Zio Pro Fac Was Fac Ext Cet Arc Hub Fac Upp Upp War Pro Fac Was Fac Upp Upp Zhi Pro Res Res Acc Com Ac0 Slots Evolved 18 | . . . . . 4 . . 2 . . . . . 2 . . . . . . 2 . . . . 2 . . . . . . 2 2 2 . . Power 1 | . . . . . . . . . . . . . . . . . . . . . 1 . . . . . . . . . . . . . . . . Propulsion 3 | . . . . . 2 . . . . . . . . 1 . . . . . . . . . . . . . . . . . . . . . . . Utility 10 | . . . . . 2 . . 2 . . . . . 1 . . . . . . 1 . . . . 2 . . . . . . 2 . . . . Weapon 4 | . . . . . . . . . . . . . . . . . . . . . . . . . . . . . . . . . . 2 2 . . Parts Attached 749 | 7 7 6 1 12 37 55 20 42 2 47 6 . 1 59 2 27 5 3 2 9 55 17 4 23 9 46 . 8 4 4 2 1 27 37 34 82 46 Power 67 | 1 1 1 . . 2 4 3 1 . . . . . 4 . 3 2 . . 1 9 1 . 3 1 1 . 3 1 . 1 . . 4 7 10 3 Engine 14 | 1 1 1 . . 2 3 3 . . . . . . . . . . . . . 2 . . . . . . . . . . . . . . 1 . Core 29 | . . . . . . 1 . 1 . . . . . 4 . 3 2 . . 1 7 1 . 2 1 . . 1 1 . . . . 2 2 . . Reactor 24 | . . . . . . . . . . . . . . . . . . . . . . . . 1 . 1 . 2 . . 1 . . 2 5 9 3 Propulsion 119 | 2 1 3 . . 12 9 7 . 1 7 . . . 5 . 4 . . . 3 4 . 1 5 . 4 . 1 1 . . . 4 15 8 18 4 Treads 24 | 1 . 1 . . 7 5 3 . . . . . . . . . . . . . . . . . . . . . . . . . . 1 . 3 3 Leg 5 | . . . . . . . . . . . . . . 1 . . . . . . . . . 1 . . . . . . . . . . . 2 1 Wheel 10 | 1 1 2 . . 4 2 . . . . . . . . . . . . . . . . . . . . . . . . . . . . . . . Hover 34 | . . . . . 1 2 . . . . . . . . . . . . . . . . . 1 . . . . . . . . . 10 7 13 . Flight 46 | . . . . . . . 4 . 1 7 . . . 4 . 4 . . . 3 4 . 1 3 . 4 . 1 1 . . . 4 4 1 . . Utility 349 | 2 3 . . . 12 11 8 20 . 29 6 . 1 39 2 17 3 2 2 5 35 10 3 11 4 27 . 4 2 4 1 1 18 10 11 32 14 Device 184 | 1 . . . . 4 5 3 10 . 14 4 . . 26 1 12 2 . . 4 19 6 . 3 3 13 . 2 1 3 1 1 4 7 5 21 9 Storage 28 | 1 2 . . . 1 1 1 3 . 4 . . . 3 . . . . . . 1 . 1 3 . 1 . . 1 1 . . 1 1 . . 2 Processor 26 | . 1 . . . 1 . 1 3 . 1 . . . . 1 1 . . . . 1 . 1 2 . 2 . . . . . . 2 . 1 7 1 Hackware 45 | . . . . . . . 1 . . 5 2 . . 4 . 3 . . 1 1 9 . . . . 8 . 1 . . . . 9 . 1 . . Protection 66 | . . . . . 6 5 2 4 . 5 . . 1 6 . 1 1 2 1 . 5 4 1 3 1 3 . 1 . . . . 2 2 4 4 2 Artifact . | . . . . . . . . . . . . . . . . . . . . . . . . . . . . . . . . . . . . . . Weapon 214 | 2 2 2 1 12 11 31 2 21 1 11 . . . 11 . 3 . 1 . . 7 6 . 4 4 14 . . . . . . 5 8 8 22 25 Energy Gun 29 | 1 2 1 . 4 4 5 . . . 1 . . . 3 . . . . . . . . . . . . . . . . . . . 1 1 . 6 Energy Cannon 22 | . . 1 . 1 1 4 . . . . . . . 3 . . . . . . 1 1 . 1 1 1 . . . . . . 1 . 3 2 1 Ballistic Gun 19 | 1 . . . 4 4 5 . . . . . . . . . . . . . . . . . . . 1 . . . . . . . 2 . 2 . Ballistic Cannon 12 | . . . . . . 4 . . . . . . . 2 . . . . . . . . . . . . . . . . . . . . . . 6 Launcher 43 | . . . . 2 2 5 1 5 . 2 . . . 1 . . . . . . . 2 . . . 1 . . . . . . . . 2 8 12 Special Weapon 7 | . . . . . . 7 . . . . . . . . . . . . . . . . . . . . . . . . . . . . . . . Impact Weapon 1 | . . . . . . . . . . . . . . . . . . . . . . . . . . . . . . . . . . . 1 . . Slashing Weapon 24 | . . . . 1 . 1 1 13 1 . . . . . . . . . . . . . . . . 2 . . . . . . 1 1 . 3 . Piercing Weapon 36 | . . . . . . . . . . 2 . . . . . 1 . 1 . . 4 2 . 2 2 7 . . . . . . 3 4 1 7 . Special Melee Weapon 21 | . . . 1 . . . . 3 . 6 . . . 2 . 2 . . . . 2 1 . 1 1 2 . . . . . . . . . . . Unidentified Prototypes 46 | . . . . 1 5 . . . . 2 . . . 11 1 1 . . . . 2 1 . 6 . 5 . . . . 1 . 2 4 1 1 2 Corrupted Parts 1 | . . . . . . . . . . . . . . . . . . . . . . . . . . . . . . . . . . . . 1 . System Corruption 5 | . . . . . . . . . . . . . . . . . . . . . . . . . . . . . . . . . . . . 5 . Parts Lost 104 | . 3 6 . 1 7 18 . . 1 . . . . 1 . 1 1 . . 1 6 1 . . 1 5 . 4 1 . . 1 . . 6 15 24 Power 21 | . . 1 . . 1 3 . . . . . . . . . 1 . . . . 3 1 . . 1 . . 2 . . . . . . 2 3 3 Propulsion 31 | . 1 3 . . 3 6 . . 1 . . . . . . . . . . . . . . . . 3 . 1 1 . . . . . 4 5 3 Utility 30 | . . . . . 2 5 . . . . . . . . . . . . . 1 3 . . . . 2 . 1 . . . 1 . . . 3 12 Weapon 22 | . 2 2 . 1 1 4 . . . . . . . 1 . . 1 . . . . . . . . . . . . . . . . . . 4 6 Highest Loss Streak 10 | . 2 3 . 1 4 10 . . 1 . . . . 1 . 1 1 . . 1 2 1 . . 1 3 . 3 1 . . 1 . . 2 8 10 To Critical Strikes . | . . . . . . . . . . . . . . . . . . . . . . . . . . . . . . . . . . . . . . Average Slot Usage (%) 93 | . 99 99 86 99 92 92 97 95 81 99 100 100 100 99 100 96 90 90 93 90 96 97 100 99 99 95 89 87 86 89 87 83 85 88 90 84 77 Engine 2 | . 14 13 14 14 8 6 9 1 . . . . . . . . . . . . 2 . . 2 4 . . 2 . . . . . . . . . Core 3 | . . . . . . 1 . 5 7 7 7 7 7 6 6 6 6 6 6 6 7 8 11 7 5 7 . . 9 10 5 . . . 1 . . Reactor 1 | . . . . . . . . . . . . . . . . . . . . . . . . . . 1 5 4 . . 3 5 4 4 5 5 4 Treads 5 | . 14 14 14 14 17 22 27 . . . . . . . . . . . . . . . . . . . . . . . . . . . . 8 10 Wheel 2 | . 13 13 14 14 11 4 . . . . . . . . . . . . . . . . . . . . . . . . . . . . . . . Hover 1 | . . . . . . 3 . . . . . . . . . . . . . . . . . . . . . . . . . . . 3 16 5 . Flight 17 | . . . . . . . 8 30 25 29 30 30 30 32 33 30 33 33 33 32 28 29 29 28 29 23 21 17 14 15 15 15 17 13 . . . Device 9 | . 2 . . . 9 7 9 12 15 4 7 7 6 7 9 5 11 6 6 12 12 14 17 17 19 12 10 7 13 10 10 10 9 12 11 17 18 Storage 6 | . 14 14 14 14 9 9 8 7 2 2 7 7 7 6 6 6 6 6 6 6 5 5 5 5 5 5 5 5 5 9 10 10 4 4 4 4 4 Processor 10 | . 11 14 14 14 9 9 8 16 15 15 15 15 15 13 16 13 9 6 6 6 5 . . 13 17 15 15 14 10 10 10 10 10 4 3 13 15 Hackware 11 | . . . . . . . 1 7 7 21 15 15 15 16 13 19 13 13 13 19 19 17 16 2 . 16 15 17 21 21 21 20 24 21 20 3 . Protection 4 | . . . . . 8 9 6 . . 1 . . . 1 . . . 10 13 . . 7 5 5 2 . 5 5 . . . . 2 7 8 6 3 Energy Gun 1 | . 13 26 3 7 6 4 . . . . . . . . . . . . . . . . . . . . . . . . . . . . 1 . 2 Ballistic Gun 1 | . 14 . . 16 11 4 . . . . . . . . . . . . . . . . . . . . . . . . . . . . . . . Launcher 1 | . . . . 2 . . . 6 2 . . . . . 6 . . . . . . . . . . . . . . . . . . . . 9 15 Slashing Weapon 2 | . . . . . . . 2 1 4 7 7 7 7 5 . . . . . . . . . . . . . . . . . . . 4 4 2 . Piercing Weapon 3 | . . . . . . . . . . . . . . . . 5 6 6 6 6 4 4 5 5 5 6 10 10 10 10 10 10 4 8 8 7 . Special Melee Weapon 2 | . . . 12 . . . . 2 . 6 7 7 7 5 6 6 . . . . 3 4 5 4 4 3 . . . . . . . . . . . Naked Turns . | . . . . . . . . . . . . . . . . . . . . . . . . . . . . . . . . . . . . . . Heaviest Build 179 | 14 52 53 53 53 109 109 80 31 28 20 34 34 34 37 35 36 38 38 38 43 41 72 77 62 53 50 44 59 51 53 46 53 49 74 82 178 179 Greatest Support 211 | 10 20 20 16 16 40 100 100 29 29 29 20 20 20 41 36 36 41 41 41 41 41 41 28 44 43 48 48 49 39 39 39 39 50 82 84 211 195 Greatest Overweight (x) 12 | 1 5 5 3 3 6 10 2 2 . 1 1 1 1 1 . 9 1 . 12 1 1 2 2 2 1 2 . 1 1 1 1 1 1 1 1 2 2 Average Overweight (x) . | . 2 4 2 3 3 2 . . . . . 1 1 . . . . . 10 . . 1 2 . . . . . . . . . . . . . . Largest Inventory Capacity 25 | 8 20 20 20 20 25 25 20 15 15 10 10 10 10 15 15 15 15 15 15 15 15 15 15 15 15 15 15 15 15 15 15 15 15 15 15 15 15 Average Capacity 14 | 7 13 20 20 20 20 22 18 14 9 6 10 10 10 11 15 15 15 15 15 15 15 15 15 15 15 15 15 15 15 15 15 15 15 15 15 15 14 Most Carried 25 | 4 14 17 18 20 24 25 20 15 15 10 10 10 10 15 15 15 15 15 15 15 15 15 15 15 15 15 15 15 15 15 15 15 15 15 15 15 15 Average Carried 13 | 2 8 14 17 18 20 21 17 12 9 6 9 9 10 10 15 14 14 14 14 14 14 14 14 14 14 14 15 14 14 15 14 15 14 14 14 14 12 Final Capacity 25 | 8 20 20 20 20 25 20 8 15 5 10 10 10 10 15 15 15 15 15 15 15 15 15 15 15 15 15 15 15 15 15 15 15 15 15 15 15 5 Final Carried 24 | 4 14 16 19 20 24 20 8 15 4 10 10 10 10 15 15 15 15 14 15 14 15 15 15 15 15 15 15 15 15 15 15 15 15 15 15 14 3 Class Distribution -------------------- 19% | Hacker-Scout 18% | Hacker-Mutant 17% | Mutant 10% | Scavenger-Mutant 7% | Wizard-Mutant 5% | Machinist-Executioner 3% | Hacker-Assassin Dominant Class ---------------- Mutant | -10/Materials Mutant | -10/Mines Mutant | -10/Exiles Mutant | -9/Mines Mutant | -8/Materials Scavenger-Mutant | -8/Garrison Scavenger-Mutant | -8/Materials Scout | -7/Factory Scout | -7/Waste Hacker-Scout | -7/Factory Hacker-Mutant | -7/Lower Caves Hacker-Mutant | -7/Zion Hacker-Mutant | -6/Proximity Caves Hacker-Scout | -6/Factory Hacker-Scout | -6/Waste Hacker-Assassin | -6/Factory Hacker-Scout | -6/Extension Hacker-Scout | -6/Cetus Hacker-Mutant | -6/Archives Hacker-Scout | -6/Hub_04(d) Hacker-Sprinter | -5/Factory Hacker-Mutant | -5/Upper Caves Hacker-Mutant | -5/Upper Caves Sprinter | -5/Warlord Mutant | -4/Proximity Caves Hacker-Scout | -4/Factory Hacker-Scout | -4/Waste Hacker-Scout | -4/Factory Wizard-Mutant | -4/Upper Caves Wizard-Sprinter | -4/Upper Caves Wizard-Mutant | -4/Zhirov Wizard-Mutant | -3/Proximity Caves Wizard-Sprinter | -3/Research Wizard-Mutant | -2/Research Wizard-Mutant | -1/Access Machinist-Executioner | -1/Command Machinist-Executioner | -1/Access_0 Resources | -11 -10 -10 -10 -9 -8 -8 -8 -7 -7 -7 -7 -7 -6 -6 -6 -6 -6 -6 -6 -6 -5 -5 -5 -5 -4 -4 -4 -4 -4 -4 -4 -3 -3 -2 -1 -1 -1 ----------- Run | Yrd Mat Min Exi Min Mat Gar Mat Fac Was Fac Low Zio Pro Fac Was Fac Ext Cet Arc Hub Fac Upp Upp War Pro Fac Was Fac Upp Upp Zhi Pro Res Res Acc Com Ac0 Matter Collected 15787 | 248 443 76 . 169 928 950 287 442 . 622 60 . . 849 . 1242 413 93 73 30 942 735 . 680 58 1455 . 386 220 72 111 . 302 399 605 933 1964 Remotely 425 | . . . . . . . . . . . . . . . . . . . . . . 345 . . . . . . . . . . . . . 80 . Salvage Created 16202 | 27 734 316 . 146 1716 1428 489 313 . 725 . . . 1026 . 992 555 . 73 20 1017 329 . . 5 1439 . 368 191 . 248 13 464 . 728 2487 353 Parts 682 | 1 42 13 . 5 98 69 17 33 . 48 . . . 33 . 34 10 . 5 3 45 13 . . 2 49 . 17 5 . 3 5 19 . 24 73 16 Haulers Intercepted 27 | . 1 . . . 6 . 1 2 . 2 . . . 5 . . . . . . 2 1 . . . 4 . . . . . . 3 . . . . Recyclers Shooed 4 | . . . . . 2 . . . . . . . . . . . . . . . . . . . . 1 . 1 . . . . . . . . . Parts Field Recycled . | . . . . . . . . . . . . . . . . . . . . . . . . . . . . . . . . . . . . . . Retrieved Matter . | . . . . . . . . . . . . . . . . . . . . . . . . . . . . . . . . . . . . . . Parts Self-Destructed 40 | . . . . . . . . . . . . . 4 . . . . . . . . 18 6 . 2 . . . 5 . . 5 . . . . . Prevented 5 | . . . . . . . . . . . 1 . . . . . . . . . . 4 . . . . . . . . . . . . . . . Kills | -11 -10 -10 -10 -9 -8 -8 -8 -7 -7 -7 -7 -7 -6 -6 -6 -6 -6 -6 -6 -6 -5 -5 -5 -5 -4 -4 -4 -4 -4 -4 -4 -3 -3 -2 -1 -1 -1 ------- Run | Yrd Mat Min Exi Min Mat Gar Mat Fac Was Fac Low Zio Pro Fac Was Fac Ext Cet Arc Hub Fac Upp Upp War Pro Fac Was Fac Upp Upp Zhi Pro Res Res Acc Com Ac0 Combat Hostiles Destroyed 181 | . 16 7 . 4 28 31 4 5 . 3 . . . 3 . . 1 . . . 2 9 . . 1 8 . 3 2 . . 2 . . 19 15 18 Melee 37 | . . . . . . . . 2 . 3 . . . 3 . . 1 . . . 2 . . . 1 1 . 1 2 . . 1 . . 7 13 . Guns 57 | . 16 5 . . 24 10 . . . . . . . . . . . . . . . . . . . . . . . . . . . . . . 2 Cannons 20 | . . 2 . . 1 4 4 . . . . . . . . . . . . . . 1 . . . . . . . . . . . . . . 8 AOE 66 | . . . . 4 3 17 . 3 . . . . . . . . . . . . . 8 . . . 7 . 2 . . . . . . 12 2 8 Classes Destroyed 20 | 1 7 1 . . 3 3 1 . . . . . . . . . . . . . . . . . 1 1 . 1 . . . . . . . 1 . Worker 24 | . 1 1 . . 4 . . 1 . 3 . . . 3 . . . . . . 3 . . . . 2 . . . . . . 1 . 2 3 . Builder 9 | . . . . . 1 . . . . 4 . . . . . . . . . . . . . . . 2 . . . . . . 2 . . . . Tunneler 6 | 1 . . . . 1 . . 1 . . . . . . . 2 . . . 1 . . . . . . . . . . . . . . . . . Hauler 27 | . 1 . . . 6 . 1 2 . 2 . . . 5 . . . . . . 2 1 . . . 4 . . . . . . 3 . . . . Recycler 36 | . 1 . . . 1 . 3 . . 4 . . . 1 . 7 2 . . . 4 . . . . 6 . 2 . . . . . . 1 4 . Carrier 1 | . . . . . . . . . . . . . . . . . . . . . . . . . . 1 . . . . . . . . . . . Mechanic 2 | . . . . . . . . . . . . . . . . . . . . . . . . . . . . 1 . . . . . . . 1 . Operator 7 | . 1 . . . 1 . . . . . . . . . . 1 . . 2 . 1 . . . . . . . . . . . . . . 1 . Drone 5 | . . . . . . . . . . . . . . . . . . . . . . . . . 1 . . 2 . . . 2 . . . . . Watcher 23 | . 1 . . . 1 . 1 3 . 4 . . . 4 . . . . . . 4 . . . . 1 . . . . . . 3 . 1 . . Swarmer 47 | . 4 . . 4 6 7 . 3 . . . . . . . . . . . . . 4 . . . 5 . 2 . . . . . . 12 . . Cutter 2 | . . . . . . 2 . . . . . . . . . . . . . . . . . . . . . . . . . . . . . . . Grunt 63 | . 12 6 . . 10 18 1 . . 1 . . . 1 . . 1 . . . . 5 . . . 1 . . 1 . . . . . 2 4 . Duelist 1 | . . . . . . . 1 . . . . . . . . . . . . . . . . . . . . . . . . . . . . . . Sentry 16 | . . . . . 9 2 2 . . . . . . . . . . . . . . . . . . 1 . 1 . . . . . . 1 . . Hunter 3 | . . . . . 3 . . . . . . . . . . . . . . . . . . . . . . . . . . . . . . . . Programmer 21 | . . . . . . 1 . 2 . 2 . . . 2 . . . . . . 2 . . . . 1 . . 1 . . . . . 4 6 . Behemoth 1 | . . . . . . 1 . . . . . . . . . . . . . . . . . . . . . . . . . . . . . . . M Guard 1 | . . . . . . . . . . . . . . . . . . . . . . . . . . . . . . . . . . . . 1 . Enhanced Grunt 10 | . . . . . . . . . . . . . . . . . . . . . . . . . . . . . . . . . . . . . 10 Enhanced Hunter 7 | . . . . . . . . . . . . . . . . . . . . . . . . . . . . . . . . . . . . . 7 Combat Programmer 1 | . . . . . . . . . . . . . . . . . . . . . . . . . . . . . . . . . . . . 1 . Alpha 7 1 | . . . . . . . . . . . . . . . . . . . . . . . . . . . . . . . . . . . . 1 . Decomposer 3 | . . . . . . . . . . . . . . . . . . . . . . 3 . . . . . . . . . . . . . . . Assembled 1 | . . 1 . . . . . . . . . . . . . . . . . . . . . . . . . . . . . . . . . . . Best Kill Streak 8 | 1 5 3 . 4 5 7 4 4 . 3 . . . 3 . 4 2 . 1 1 3 6 . . 1 5 . 3 1 . . 2 6 . 8 4 4 Combat Bots Only 7 | . 5 3 . 4 5 7 3 3 . 1 . . . 1 . . 1 . . . 1 5 . . 1 3 . 2 1 . . 2 . . 6 3 4 Max Kills in Single Turn 5 | 1 1 2 . 4 2 3 1 3 . 1 . . . 1 . 1 1 . 1 1 1 5 . . 1 3 . 4 1 . . 1 1 . 5 1 2 Gunslinging . | . . . . . . . . . . . . . . . . . . . . . . . . . . . . . . . . . . . . . . Exploded 5 | . . . . 4 2 3 . 3 . . . . . . . . . . . . . 4 . . . 3 . 2 . . . . . . 5 1 2 Melee 1 | . . . . . . . . 1 . 1 . . . 1 . . 1 . . . 1 . . . 1 1 . 1 1 . . 1 . . 1 1 . Uniques/NPCs Destroyed 4 | . . . . 1 . . . . . . . . . . . . . . . . . . . . . . . . . . . . . . . 2 1 YI-UF0 (-9/Mines) MAIN.C Shell (-1/Command) MAIN.C (-1/Command) A8 (-1/Access_0) Combat | -11 -10 -10 -10 -9 -8 -8 -8 -7 -7 -7 -7 -7 -6 -6 -6 -6 -6 -6 -6 -6 -5 -5 -5 -5 -4 -4 -4 -4 -4 -4 -4 -3 -3 -2 -1 -1 -1 -------- Run | Yrd Mat Min Exi Min Mat Gar Mat Fac Was Fac Low Zio Pro Fac Was Fac Ext Cet Arc Hub Fac Upp Upp War Pro Fac Was Fac Upp Upp Zhi Pro Res Res Acc Com Ac0 Hostile Shots Fired 1914 | . 55 41 . 8 184 193 4 13 2 28 . . 4 52 . 38 25 2 6 37 23 37 2 . 56 39 . 61 35 10 . 13 25 3 96 159 663 Missed 689 | . 14 9 . 2 46 50 1 7 1 15 . . 1 25 . 22 17 2 3 23 6 14 . . 25 19 . 26 10 3 . 4 17 2 32 38 255 Damage Taken 24223 | . 490 520 . 41 1564 2621 39 128 30 179 . . 44 461 . 256 99 . 74 159 417 507 40 . 379 386 . 664 496 151 . 194 181 24 1520 3176 9383 Core 3788 | . 52 88 . 7 156 318 . 31 30 110 . . . 143 . 52 6 . 50 90 21 52 . . 70 53 . 149 168 16 . 62 56 . 118 521 1369 Absorbed by Shields 4665 | . . . . . 404 240 . . . . . . . . . . . . . . . . . . . 11 . . . . . . . . . 96 3914 Reduced by Siege Mode 465 | . . . . . . . . . . . . . . . . . . . . . . . . . . . . . . . . . . . . . 465 Redirected to Shielding 802 | . . . . . 4 . . . . . . . 9 . . . . . . . . 47 13 . . . . 73 . . . . 20 . 122 305 209 Ignored by Resistances 67 | . . . . . . 61 6 . . . . . . . . . . . . . . . . . . . . . . . . . . . . . . Regen/Repaired (Parts) 1927 | . . . . . 70 . . 11 . 82 . 56 . 72 . 135 . . . . 445 . . 46 . 63 . 346 . . . . . . 71 530 . Core Remaining (%) 69 | 100 . . . 41 . . 13 . . . . . 75 . . . . . . 59 . . . . 85 . . . . . . 61 95 100 . . . Volleys Fired 507 | 4 45 25 . 1 137 135 12 3 . . . . . 1 . . . . . . 2 12 . . 1 3 . . . . . . 1 . 14 10 101 Largest 6 | 2 2 2 . 1 2 2 2 1 . . . . . 1 . . . . . . 1 1 . . 1 1 . . . . . . 1 . 1 1 6 Hottest 394 | 60 85 130 . 30 80 143 143 30 . . . . . 40 . . . . . . 90 90 . . 100 100 . . . . . . 105 . 120 100 394 Shots Fired 916 | 8 87 48 . 1 259 223 24 3 . . . . . 1 . . . . . . 2 12 . . 1 3 . . . . . . 1 . 14 11 218 Gun 632 | 8 87 34 . . 246 182 . . . . . . . . . . . . . . . . . . . . . . . . . . . . 5 . 70 Cannon 190 | . . 14 . . 10 30 24 . . . . . . 1 . . . . . . 2 6 . . 1 2 . . . . . . 1 . 3 5 91 Launcher 94 | . . . . 1 3 11 . 3 . . . . . . . . . . . . . 6 . . . 1 . . . . . . . . 6 6 57 Special . | . . . . . . . . . . . . . . . . . . . . . . . . . . . . . . . . . . . . . . Kinetic 417 | 4 45 1 . . 187 98 12 . . . . . . . . . . . . . . . . . . . . . . . . . . . . . 70 Thermal 357 | 4 37 47 . . 69 107 12 . . . . . . . . . . . . . 2 6 . . . . . . . . . . 1 . 2 . 70 Explosive 87 | . . . . 1 3 11 . 3 . . . . . . . . . . . . . 6 . . . . . . . . . . . . 6 . 57 Electromagnetic 18 | . 5 . . . . 7 . . . . . . . 1 . . . . . . . . . . . . . . . . . . . . 5 . . Entropic 37 | . . . . . . . . . . . . . . . . . . . . . . . . . 1 3 . . . . . . . . 1 11 21 Robot Hit Streak 38 | 3 25 9 . . 33 38 10 12 . . . . . . . . . . . . . 3 . . . . . . . . . . . . 2 6 25 Robot Miss Streak 11 | 2 5 2 . . 5 2 1 . . . . . . . . . . . . . . 11 . . . . . . . . . . . . 6 . 5 Penetration Max 1 | . . . . . . . . . . . . . . . . . . . . . . . . . . . . . . . . . . . . . 1 Secondary Targets 6 | . 1 . . . 3 2 . . . . . . . . . . . . . . . . . . . . . . . . . . . . . . . Max Gunslinging Chain 1 | . 1 . . . 1 1 . . . . . . . . . . . . . . . . . . . . . . . . . . . . . . . Shots Hit Robots 1088 | 4 64 33 4 5 203 182 20 17 . 33 1 4 . 47 . 14 9 . 6 1 29 15 . 7 1 24 . 12 16 . 5 1 20 . 23 119 169 Core Hits 555 | 1 32 12 . 4 74 89 7 10 . 12 . . . 13 . 7 5 . 3 1 17 34 . . . 20 . 7 5 . 3 1 7 . 21 61 109 Critical Kills 11 | . 1 . . . 2 1 . . . . . . . . . . . . . . . . . . . . . . . . . . . . . . 7 Critical Parts Destroyed 12 | . . . . . . . . . . . . . . . . . . . . . . . . . . . . . . . . . . . . . 12 Critical Strikes 104 | . 1 1 . . 5 6 . 2 . 6 . . . 3 . 2 2 . . . . 1 . . 1 6 . . 3 . . . 3 . 4 18 40 Burn 11 | . . 1 . . 3 5 . . . . . . . . . . . . . . . . . . . . . . . . . . . . . . 2 Destroy 32 | . 1 . . . 2 1 . . . . . . . . . . . . . . . . . . . . . . . . . . . . . . 28 Corrupt 1 | . . . . . . . . . . . . . . . . . . . . . . . . . . . . . . . . . . . 1 . . Sever 16 | . . . . . . . . 2 . 6 . . . 3 . . . . . . . . . . . . . . . . . . . . . 5 . Impale 34 | . . . . . . . . . . . . . . . . 2 2 . . . . 1 . . 1 6 . . 3 . . . 3 . 3 13 . Sunder 10 | . . . . . . . . . . . . . . . . . . . . . . . . . . . . . . . . . . . . . 10 Melee Attacks 780 | . . . 4 5 . 7 4 26 . 55 1 4 . 92 . 41 11 . 7 4 60 5 . 11 11 78 . 36 21 . 5 17 35 21 52 167 . Thermal 5 | . . . . . . . . . . . . . . . . . . . . . . . . . . . . . . . . . . . . 5 . Impact 9 | . . . . . . . . . . . . . . . . . . . . . . . . . . . . . . . . . . . 3 6 . Slashing 288 | . . . . 5 . 7 4 26 . 53 . . . 92 . . . . . . . . . . . . . . . . . . 9 14 15 63 . Piercing 456 | . . . . . . . . . . . . . . . . 41 11 . 7 4 60 3 . 4 11 76 . 36 21 . 5 17 26 7 34 93 . Sneak Attacks 122 | . . . 4 5 . . 2 3 . 14 1 4 . 10 . 9 2 . 3 1 11 5 . 7 . 14 . 4 1 . . . 8 . 3 11 . Combat Hostiles 4 | . . . . . . . . . . . . . . 1 . . . . . . . . . . . . . . 1 . . . . . 1 1 . Follow-up Attacks 43 | . . . . . . . . . . . . . . . . . . . . . . . . . . 1 . . 2 . 2 . 2 . 6 30 . Damage Inflicted 59074 | 45 896 569 . 585 3353 5167 792 1185 . 2098 . . . 2947 . 983 606 . 284 56 1567 1397 . . 38 3763 . 1130 689 . 398 53 1446 . 3183 12150 13694 Guns 8408 | 45 843 356 . . 3001 2565 . . . . . . . . . . . . . . . . . . . . . . . . . . . . 164 . 1434 Cannons 4393 | . . 213 . . 157 450 529 . . . . . . . . . . . . . . 159 . . . . . . . . . . . . . . 2885 Explosions 20876 | . 53 . . 164 195 1507 . 365 . . . . . . . . . . . . . 1029 . . . 2159 . 457 . . . . . . 1999 3573 9375 Melee 25397 | . . . . 421 . 645 263 820 . 2098 . . . 2947 . 983 606 . 284 56 1567 209 . . 38 1604 . 673 689 . 398 53 1446 . 1020 8577 . Ramming . | . . . . . . . . . . . . . . . . . . . . . . . . . . . . . . . . . . . . . . Kinetic 5160 | 35 425 12 . . 2027 1190 240 . . . . . . . . . . . . . . . . . . . . . . . . . . . . . 1231 Thermal 6809 | 10 400 557 . . 1131 1745 289 . . . . . . . . . . . . . . 159 . . . 1084 . . . . . . . . . . 1434 Explosive 15764 | . . . . 164 195 1507 . 365 . . . . . . . . . . . . . 1029 . . . 673 . 457 . . . . . . 1999 . 9375 Electromagnetic 315 | . 71 . . . . 80 . . . . . . . . . . . . . . . . . . . . . . . . . . . . 164 . . Impact 138 | . . . . . . . . . . . . . . . . . . . . . . . . . . . . . . . . . . . . 138 . Slashing 11591 | . . . . 421 . 645 263 820 . 2098 . . . 2947 . . . . . . . . . . . . . . . . . . 324 . 99 3974 . Piercing 13668 | . . . . . . . . . . . . . . . . 983 606 . 284 56 1567 209 . . 38 1604 . 673 689 . 398 53 1122 . 921 4465 . Entropic 5629 | . . . . . . . . . . . . . . . . . . . . . . . . . . 402 . . . . . . . . . 3573 1654 Highest Corruption 12 | . 2 2 2 2 . 1 1 1 10 10 . . . 5 10 10 . . . 1 5 . . . . 2 . 7 11 11 11 11 . . 2 12 . Average Corruption 4 | . 2 2 2 2 . 1 1 1 10 3 . . . 2 6 8 . . . 1 1 . . . . 1 . 7 10 11 11 11 . . 1 6 . Corruption Purged 55 | . . . . . . . . 1 . 12 . . . . . 10 . . . . 9 . . . . 2 . . . . . . . . 3 18 . Corruption Blocked 78 | . . . . . . . . . . . . . . . . . . . . . . . . 8 . . . . . . . . . 40 . 30 . Effects 251 | . 5 7 6 7 . 16 3 . 1 19 . . . 12 1 43 . . . . 10 . . . . 3 . 13 14 6 3 29 . . 2 51 . Message Errors 48 | . . 1 1 1 . 2 2 . . 3 . . . 5 . 10 . . . . 1 . . . . . . 4 2 . 1 5 . . . 10 . Matter Fused 70 | . 3 3 1 3 . 4 1 . . 7 . . . 2 . 9 . . . . 4 . . . . 1 . 5 2 2 1 8 . . . 14 . Heat Flow Errors 30 | . . . 1 . . 2 . . . 2 . . . 2 1 5 . . . . . . . . . . . 1 3 2 1 5 . . . 5 . Energy Discharges 36 | . . . 1 2 . 2 . . . 4 . . . 1 . 5 . . . . 4 . . . . 1 . 1 1 1 . 6 . . . 7 . Parts Rejected 2 | . . . . . . . . . . . . . . 1 . . . . . . . . . . . . . . . . . . . . 1 . . Parts Fused 3 | . . 1 . . . 1 . . . . . . . . . . . . . . . . . . . . . . . . . . . . . 1 . Data Loss (minor) 36 | . 2 1 2 1 . 4 . . 1 3 . . . 1 . 9 . . . . 1 . . . . . . 2 3 1 . 1 . . 1 3 . Data Loss (major) 14 | . . . . . . . . . . . . . . . . 2 . . . . . . . . . 1 . . 2 . . 2 . . . 7 . Misfires 2 | . . 1 . . . . . . . . . . . . . . . . . . . . . . . . . . . . . . . . . 1 . Alerts 7 | . . . . . . 1 . . . . . . . . . 1 . . . . . . . . . . . . 1 . . 1 . . . 3 . Misdirections 3 | . . . . . . . . . . . . . . . . 2 . . . . . . . . . . . . . . . 1 . . . . . Overload Shots 9 | . . . . . 2 7 . . . . . . . . . . . . . . . . . . . . . . . . . . . . . . . Effects 1 | . . . . . . 1 . . . . . . . . . . . . . . . . . . . . . . . . . . . . . . . Energy Bleed 1 | . . . . . . 1 . . . . . . . . . . . . . . . . . . . . . . . . . . . . . . . Overflow Damage 5289 | . 31 . . 73 . 157 98 170 . 533 . . . 385 . 269 215 . 31 . 160 129 . . 36 542 . 310 99 . 47 . 301 . 785 808 110 Projectiles 45 | . . . . . . 15 5 . . . . . . . . . . . . . . . . . . . . . . . . . . . . . 25 Explosions 1077 | . 31 . . 41 . 16 . 15 . . . . . . . . . . . . . . . . . 127 . 134 . . . . . . 621 7 85 Melee 4167 | . . . . 32 . 126 93 155 . 533 . . . 385 . 269 215 . 31 . 160 129 . . 36 415 . 176 99 . 47 . 301 . 164 801 . Knockbacks 5 | . . . . . . . . . . . . . . . . . . . . . . . . . . . . . . . . . . . . . 5 Impact . | . . . . . . . . . . . . . . . . . . . . . . . . . . . . . . . . . . . . . . Kinetic 5 | . . . . . . . . . . . . . . . . . . . . . . . . . . . . . . . . . . . . . 5 Secondary . | . . . . . . . . . . . . . . . . . . . . . . . . . . . . . . . . . . . . . . Self-Inflicted Damage 629 | . 35 . . . . 239 . 42 . . . . . . . . . . . . . 67 . . . . . . . . . . . . 133 . 113 Shots 16 | . 1 . . . . 7 . 2 . . . . . . . . . . . . . 3 . . . . . . . . . . . . 1 . 2 Rammed . | . . . . . . . . . . . . . . . . . . . . . . . . . . . . . . . . . . . . . . Targets Rammed . | . . . . . . . . . . . . . . . . . . . . . . . . . . . . . . . . . . . . . . Kicked . | . . . . . . . . . . . . . . . . . . . . . . . . . . . . . . . . . . . . . . Crushed . | . . . . . . . . . . . . . . . . . . . . . . . . . . . . . . . . . . . . . . Highest Temperature 408 | . 71 403 120 . 28 328 18 1 . 179 . . . 312 244 270 308 300 176 83 308 165 . 233 13 190 . 168 232 121 162 253 54 408 138 272 394 Average Temperature 57 | . 21 165 70 . 7 71 7 1 . 80 . . . 40 143 37 55 149 91 32 52 83 . 74 6 82 . 78 60 51 71 108 11 55 45 65 107 Received Heat Transfer 2898 | . 204 291 . . 501 1113 18 . . 9 . . . 60 . 33 18 . 36 36 . 93 . . 9 12 . 63 79 39 . 21 27 . 63 173 . Effects 8 | . . . . . . 1 . . . . . . . . . . 1 . . . 4 . . . . . . . . . . . . 2 . . . Energy Bleed 3 | . . . . . . . . . . . . . . . . . 1 . . . 1 . . . . . . . . . . . . 1 . . . Interference 3 | . . . . . . . . . . . . . . . . . . . . . 3 . . . . . . . . . . . . . . . . Short Circuit 2 | . . . . . . 1 . . . . . . . . . . . . . . . . . . . . . . . . . . . 1 . . . Siege Activations 19 | . . . . . . . . . . . . . . . . . . . . . . . . . . . . . . . . . . . . . 19 Total Turns 223 | . . . . . . . . . . . . . . . . . . . . . . . . . . . . . . . . . . . . . 223 Longest Duration 33 | . . . . . . . . . . . . . . . . . . . . . . . . . . . . . . . . . . . . . 33 Robots Corrupted 1 | . . . . . . . . . . . . . . . . . . . . . . . . . . . . . . . . . . . 1 . . Combat Hostiles . | . . . . . . . . . . . . . . . . . . . . . . . . . . . . . . . . . . . . . . Parts Fried 2 | . . . . . . . . . . . . . . . . . . . . . . . . . . . . . . . . . . . 2 . . Impact Corruptions 1 | . . . . . . . . . . . . . . . . . . . . . . . . . . . . . . . . . . . . 1 . Robots Melted . | . . . . . . . . . . . . . . . . . . . . . . . . . . . . . . . . . . . . . . Combat Hostiles . | . . . . . . . . . . . . . . . . . . . . . . . . . . . . . . . . . . . . . . Parts Melted 12 | . . 4 . . 4 2 . . . . . . . . . . . . . . . 1 . . . 1 . . . . . . . . . . . Heat Transferred 10480 | 25 836 1332 . . 2442 3414 450 . . . . . . . . . . . . . . 250 . . . 750 . . . . . . . . . . 981 Parts Sabotaged . | . . . . . . . . . . . . . . . . . . . . . . . . . . . . . . . . . . . . . . Parts Stolen . | . . . . . . . . . . . . . . . . . . . . . . . . . . . . . . . . . . . . . . Parts Stripped . | . . . . . . . . . . . . . . . . . . . . . . . . . . . . . . . . . . . . . . Power Chain Reactions 1 | . 1 . . . . . . . . . . . . . . . . . . . . . . . . . . . . . . . . . . . . Alert | -11 -10 -10 -10 -9 -8 -8 -8 -7 -7 -7 -7 -7 -6 -6 -6 -6 -6 -6 -6 -6 -5 -5 -5 -5 -4 -4 -4 -4 -4 -4 -4 -3 -3 -2 -1 -1 -1 ------- Run | Yrd Mat Min Exi Min Mat Gar Mat Fac Was Fac Low Zio Pro Fac Was Fac Ext Cet Arc Hub Fac Upp Upp War Pro Fac Was Fac Upp Upp Zhi Pro Res Res Acc Com Ac0 Peak Influence 1884 | 5 448 255 . 98 516 1884 1034 501 111 239 . . . 585 219 344 456 40 60 166 333 . . . . 1512 287 575 . . . . 319 80 988 297 . Initial 918 | . 3 140 . . . 326 918 393 111 70 . . . . 204 153 119 40 16 21 81 . . . . 563 257 200 . . . . 150 42 44 297 . Average 235 | . 270 133 . 63 126 969 933 313 105 51 . . . 198 207 246 270 40 2 83 82 . . . . 684 270 251 . . . . 97 35 509 87 . Maximum Alert Level 5 | . 2 1 . . 2 5 3 2 . 1 . . . 2 1 1 2 . . . 1 . . . . 4 1 2 . . . . 1 . 3 1 . Low Security (%) 55 | 100 26 63 . 100 84 . . 9 100 99 . . . 47 . 29 41 100 100 100 88 . . . . . . 15 . . . . 74 100 19 20 . Level 1 29 | . 59 36 . . 10 8 . 67 . . . . . 51 100 70 31 . . . 11 . . . . 33 100 82 . . . . 25 . 19 79 . Level 2 4 | . 13 . . . 5 15 . 22 . . . . . 1 . . 26 . . . . . . . . 24 . 2 . . . . . . 23 . . Level 3 6 | . . . . . . 46 100 . . . . . . . . . . . . . . . . . . 21 . . . . . . . . 37 . . Level 4 1 | . . . . . . 20 . . . . . . . . . . . . . . . . . . . 20 . . . . . . . . . . . Level 5 . | . . . . . . 8 . . . . . . . . . . . . . . . . . . . . . . . . . . . . . . . High Security . | . . . . . . . . . . . . . . . . . . . . . . . . . . . . . . . . . . . . . . Max Security . | . . . . . . . . . . . . . . . . . . . . . . . . . . . . . . . . . . . . . . Squads Dispatched 106 | . 6 . . . 6 . . 8 . 13 . . . 15 . 10 . . . 3 10 . . . 1 9 . 6 . 1 . . 2 . 6 10 . Investigation 48 | . 5 . . . 1 . . 3 . 7 . . . 5 . 5 . . . 3 6 . . . . 6 . 3 . . . . 1 . 2 1 . Extermination 21 | . . . . . . . . 4 . 4 . . . 2 . 1 . . . . 1 . . . . 1 . 1 . . . . 1 . 3 3 . Reinforcement 26 | . 1 . . . 1 . . 1 . 2 . . . 5 . 4 . . . . 3 . . . . 2 . 2 . . . . . . . 5 . Assault 4 | . . . . . . . . . . . . . . . . . . . . . . . . . 1 . . . . 1 . . . . 1 1 . Garrison 7 | . . . . . 4 . . . . . . . . 3 . . . . . . . . . . . . . . . . . . . . . . . Intercept . | . . . . . . . . . . . . . . . . . . . . . . . . . . . . . . . . . . . . . . Searches Triggered 3 | . . . . . . . . . . . . . . . . . 1 . . . . . . . . 2 . . . . . . . . . . . Construction Impeded 2 | . . . . . . . . . . 1 . . . . . . . . . . . . . . . . . 1 . . . . . . . . . Haulers Reinforced 3 | . . . . . . . . . . . . . . 1 . . . . . . 2 . . . . . . . . . . . . . . . . Active Scanning Responses . | . . . . . . . . . . . . . . . . . . . . . . . . . . . . . . . . . . . . . . Cargo Convoy Interrupts 3 | . . . . . . . . 1 . . . . . 1 . . . . . . . . . . . 1 . . . . . . . . . . . Stealth | -11 -10 -10 -10 -9 -8 -8 -8 -7 -7 -7 -7 -7 -6 -6 -6 -6 -6 -6 -6 -6 -5 -5 -5 -5 -4 -4 -4 -4 -4 -4 -4 -3 -3 -2 -1 -1 -1 --------- Run | Yrd Mat Min Exi Min Mat Gar Mat Fac Was Fac Low Zio Pro Fac Was Fac Ext Cet Arc Hub Fac Upp Upp War Pro Fac Was Fac Upp Upp Zhi Pro Res Res Acc Com Ac0 Distress Signals 74 | . 1 . . . 9 . 1 1 . 1 . . . 2 . . . 1 . 1 2 . . . 1 8 . 3 . . . . 1 10 3 29 . Communications Jammed 16 | . . . . . . . . . . . . . . 8 . . . . . . . . . . 1 6 . . . . . . 1 . . . . Distress Signals 11 | . . . . . . . . . . . . . . 6 . . . . . . . . . . . 5 . . . . . . . . . . . Times Spotted 627 | . 26 8 . 4 47 35 6 21 6 25 . . 2 47 4 20 13 5 6 2 20 17 1 11 32 45 3 46 3 14 . 10 23 15 36 37 37 Peak Tracking Total 20 | . 6 5 . 4 4 9 3 4 6 7 . . 2 14 4 9 4 5 4 5 5 7 1 4 14 12 3 20 2 6 . 8 10 7 10 6 5 Tactical Retreats 94 | . 3 . . . 3 7 . 1 . 11 . . . 9 . 8 4 . . . 4 2 . . 3 11 . 6 1 5 . . 3 4 5 4 . Traps | -11 -10 -10 -10 -9 -8 -8 -8 -7 -7 -7 -7 -7 -6 -6 -6 -6 -6 -6 -6 -6 -5 -5 -5 -5 -4 -4 -4 -4 -4 -4 -4 -3 -3 -2 -1 -1 -1 ------- Run | Yrd Mat Min Exi Min Mat Gar Mat Fac Was Fac Low Zio Pro Fac Was Fac Ext Cet Arc Hub Fac Upp Upp War Pro Fac Was Fac Upp Upp Zhi Pro Res Res Acc Com Ac0 Traps Triggered 21 | . 1 . . . 1 2 . 2 . 2 . . . 3 . 1 2 . . 2 2 . . . . 3 . . . . . . . . . . . Indirectly . | . . . . . . . . . . . . . . . . . . . . . . . . . . . . . . . . . . . . . . Trap Hack Attempts 122 | . . . . . . . . 56 . 18 . . . 29 . 13 . . . . 6 . . . . . . . . . . . . . . . . Triggered 1 | . . . . . . . . . . . . . . 1 . . . . . . . . . . . . . . . . . . . . . . . Disarmed 9 | . . . . . 6 . . 1 . . . . . 2 . . . . . . . . . . . . . . . . . . . . . . . Reprogrammed 50 | . . . . . . . . 4 . 9 . . . 5 . 1 . . . . 7 . . . . 12 . 9 . . . . 3 . . . . Reused 27 | . . . . . . . . . . 2 . . . 6 . 1 . . . . 3 . . . . 11 . 2 . . . . 2 . . . . Traps Extracted 22 | . . . . . . . . 4 . 9 . . . 7 . . . . . . 2 . . . . . . . . . . . . . . . . Installed 20 | . . . . . . . . 3 . 3 . . . 8 . . . . . . . . . . . 6 . . . . . . . . . . . Triggered 40 | . . . . . . . . . . 2 . . . 6 . 1 . . . . 3 . . 9 . 11 . 2 1 1 . 1 2 . 1 . . Most Traps Carried 8 | . . . . . . 4 4 8 5 5 5 5 5 5 4 4 4 4 4 4 6 6 6 6 6 6 . . . . . . . . . . . Objects Rigged 25 | . . . . . . . . . . . . . . . . . . . . . . . . . . 19 . 5 . . . . 1 . . . . Exploded 6 | . . . . . . . . . . . . . . . . . . . . . . . . . . 5 . 1 . . . . . . . . . Machines | -11 -10 -10 -10 -9 -8 -8 -8 -7 -7 -7 -7 -7 -6 -6 -6 -6 -6 -6 -6 -6 -5 -5 -5 -5 -4 -4 -4 -4 -4 -4 -4 -3 -3 -2 -1 -1 -1 ---------- Run | Yrd Mat Min Exi Min Mat Gar Mat Fac Was Fac Low Zio Pro Fac Was Fac Ext Cet Arc Hub Fac Upp Upp War Pro Fac Was Fac Upp Upp Zhi Pro Res Res Acc Com Ac0 Machines Disabled 34 | . . 1 . . . 4 . . . . . . . 1 . 1 . . . . . . . 1 . 19 . 1 . . . . . 1 1 2 2 Max in Single Turn 6 | . . 1 . . . 2 . . . . . . . 1 . 1 . . . . . . . 1 . 6 . 1 . . . . . 1 1 1 1 Garrison Access 18 | . . . . . . . . 1 . 4 . . . 2 . 3 . . . . 2 . . . . 2 . . . . . . 1 2 1 . . Garrison Relay 6 | . . . . . . 6 . . . . . . . . . . . . . . . . . . . . . . . . . . . . . . . Phase Generator 1 | . . . . . . 1 . . . . . . . . . . . . . . . . . . . . . . . . . . . . . . . Network Hub 3 | . . . . . . . . . . . . . . . . . . . . 3 . . . . . . . . . . . . . . . . . Machines Repaired . | . . . . . . . . . . . . . . . . . . . . . . . . . . . . . . . . . . . . . . Machines Dismantled 8 | . . . . . . 8 . . . . . . . . . . . . . . . . . . . . . . . . . . . . . . . Machines Sabotaged 2 | . . . . . . . . . . . . . . . . . . . . 2 . . . . . . . . . . . . . . . . . Overloaded Fab Kills . | . . . . . . . . . . . . . . . . . . . . . . . . . . . . . . . . . . . . . . Hacking | -11 -10 -10 -10 -9 -8 -8 -8 -7 -7 -7 -7 -7 -6 -6 -6 -6 -6 -6 -6 -6 -5 -5 -5 -5 -4 -4 -4 -4 -4 -4 -4 -3 -3 -2 -1 -1 -1 --------- Run | Yrd Mat Min Exi Min Mat Gar Mat Fac Was Fac Low Zio Pro Fac Was Fac Ext Cet Arc Hub Fac Upp Upp War Pro Fac Was Fac Upp Upp Zhi Pro Res Res Acc Com Ac0 Machines Accessed 265 | . 7 . 2 1 14 3 4 25 . 35 1 . . 26 . 21 7 . . 3 27 . 1 12 . 23 . 12 . . 4 . 11 6 8 12 . Terminals 132 | . 6 . . . 10 3 4 13 . 14 . . . 11 . 8 6 . . 3 14 . . . . 10 . 6 . . . . 6 4 4 10 . Fabricators 33 | . . . . . . . . 4 . 6 . . . 4 . 4 . . . . 5 . . . . 5 . 3 . . . . 1 . 1 . . Repair Stations 21 | . . . . . 1 . . 3 . 2 . . . 3 . 4 . . . . 2 . . . . 1 . 2 . . . . . . 1 2 . Recycling Units 23 | . 1 . . . 1 . . 2 . 6 . . . 4 . . 1 . . . 3 . . . . 4 . . . . . . . . 1 . . Scanalyzers 15 | . . . . . 1 . . 1 . 3 . . . 2 . 2 . . . . 1 . . . . 1 . 1 . . . . 3 . . . . Garrison Access 20 | . . . . . 1 . . 2 . 4 . . . 2 . 3 . . . . 2 . . . . 2 . . . . . . 1 2 1 . . Total Hacks 1063 | . 33 . 5 1 57 6 11 58 . 101 1 . . 68 . 73 26 . . 17 156 . 1 26 . 131 . 54 . . 17 . 81 45 36 59 . Successful 772 | . 11 . 5 1 36 4 6 33 . 70 1 . . 45 . 48 12 . . 9 120 . 1 26 . 101 . 46 . . 17 . 77 39 28 36 . Failed 287 | . 22 . . . 21 2 5 25 . 31 . . . 23 . 25 14 . . 8 35 . . . . 30 . 7 . . . . 3 5 8 23 . Catastrophic 38 | . 2 . . . 3 1 1 7 . 5 . . . 2 . 1 1 . . 1 6 . . . . 2 . 1 . . . . 1 . 2 2 . Database Lockouts 4 | . . . . . . . . . . . . . . . . . . . . . 1 . . . . . . 1 . . . . 1 1 . . . Manual 491 | . 28 . 1 . 21 3 9 16 . 37 . . . 32 . 18 9 . . 11 71 . . . . 76 . 33 . . . . 38 29 17 42 . Terminals 635 | . 31 . . . 38 6 11 29 . 38 . . . 27 . 33 24 . . 17 86 . . . . 87 . 41 . . . . 54 43 19 51 . Fabricators 150 | . . . . . . . . 14 . 23 . . . 17 . 14 . . . . 31 . . . . 19 . 6 . . . . 19 . 7 . . Repair Stations 72 | . . . . . 3 . . 7 . 6 . . . 7 . 10 . . . . 21 . . . . 2 . 5 . . . . . . 3 8 . Recycling Units 67 | . 2 . . . 2 . . 3 . 15 . . . 10 . . 2 . . . 11 . . . . 16 . . . . . . . . 6 . . Scanalyzers 57 | . . . . . 11 . . 3 . 12 . . . 5 . 7 . . . . 5 . . . . 5 . 2 . . . . 7 . . . . Garrison Access 31 | . . . . . 3 . . 2 . 7 . . . 2 . 9 . . . . 2 . . . . 2 . . . . . . 1 2 1 . . Terminal Hacks 313 | . 5 . 5 1 14 3 3 10 . 15 1 . . 7 . 12 7 . . 4 34 . 1 26 . 41 . 19 . . 17 . 35 25 11 17 . Record 29 | . . . 4 . . . 1 . . . . . . . . . . . . . . . . 19 . . . . . . 5 . . . . . . Part Schematic 28 | . 1 . . . 1 . . 3 . . . . . . . 2 . . . . 4 . . . . 2 . 1 . . 4 . 7 3 . . . Robot Schematic 3 | . . . . . . . . . . . . . . . . . . . . . . . . . . 1 . . . . . . 2 . . . . Robot Analysis 10 | . 2 . . . 1 . . . . . . . . . . . . . . . . . . . . . . . . . 4 . 1 2 . . . Prototype ID Bank 23 | . 1 . . . 3 . 1 . . . . . . . . 1 1 . . . 1 . . 5 . 3 . 2 . . 4 . . 1 . . . Open Door 12 | . . . . 1 . . . . . . 1 . . 1 . . 4 . . . . . 1 2 . . . . . . . . . . 1 1 . Level Access Points 8 | . . . . . 1 . . . . . . . . . . . . . . 1 1 . . . . 1 . 1 . . . . 1 1 . 1 . Branch Access Points 11 | . 1 . . . . . . 1 . 1 . . . 1 . 1 . . . . 1 . . . . 1 . 2 . . . . 1 . 1 . . Emergency Access Points 6 | . . . . . . . . . . . . . . . . . . . . . 1 . . . . . . 1 . . . . 2 1 . 1 . Machine Index 9 | . . . . . . . . . . . . . . 1 . 1 . . . . 1 . . . . 1 . 1 . . . . 1 1 1 1 . Terminal Index 7 | . . . . . 1 . . 1 . 2 . . . . . 1 1 . . . . . . . . . . 1 . . . . . . . . . Fabricator Index 1 | . . . . . . . . . . . . . . . . . . . . . 1 . . . . . . . . . . . . . . . . Scanalyzer Index 1 | . . . . . 1 . . . . . . . . . . . . . . . . . . . . . . . . . . . . . . . . Garrison Index 1 | . . . . . . . . . . . . . . 1 . . . . . . . . . . . . . . . . . . . . . . . Alert Level 9 | . . . . . . . . . . . . . . 1 . . . . . . 3 . . . . 2 . 1 . . . . 1 1 . . . Unreport Threat 21 | . . . . . . . . . . . . . . . . . . . . . 2 . . . . 7 . 1 . . . . 5 1 3 2 . Locate Traps 22 | . . . . . . . . 2 . 5 . . . . . 2 . . . 1 6 . . . . 3 . 1 . . . . 1 . . 1 . Disarm Traps 1 | . . . . . 1 . . . . . . . . . . . . . . . . . . . . . . . . . . . . . . . . Reprogram Traps 9 | . . . . . . . . . . 1 . . . . . . . . . . 2 . . . . 3 . 2 . . . . 1 . . . . Dispatch Records 3 | . . . . . . . . . . . . . . . . . . . . . . . . . . 1 . . . . . . . 2 . . . Security Status 5 | . . . . . . . . . . . . . . . . . . . . . . . . . . 1 . . . . . . 1 2 . 1 . Patrol Status 2 | . . . . . . . . . . . . . . . . . . . . . . . . . . 1 . . . . . . . 1 . . . Transport Status 1 | . . . . . . . . . . . . . . . . . . . . . . . . . . . . . . . . . . 1 . . . Recall Investigation 4 | . . . . . . . . . . 1 . . . . . . . . . . . . . . . 2 . . . . . . 1 . . . . Recall Extermination 8 | . . . . . . . . 1 . 1 . . . . . . . . . . . . . . . 1 . 1 . . . . 1 . 2 1 . Recall Assault 2 | . . . . . . . . . . . . . . . . . . . . . . . . . . . . . . . . . . 1 1 . . Hauler Manifests 13 | . . . . . 2 . . 1 . 1 . . . 1 . 1 1 . . . 2 . . . . 2 . . . . . . 1 1 . . . Registered Components 8 | . . . . . 1 . . . . . . . . . . . . . . . 1 . . . . 1 . 1 . . . . 1 1 1 1 . Registered Prototypes 4 | . . . . . . . . . . . . . . . . . . . . . 1 . . . . . . . . . . . 1 1 . 1 . Zone Layout 46 | . . . . . 2 . 1 1 . 3 . . . 1 . 3 . . . 2 7 . . . . 8 . 3 . . . . 6 4 1 4 . Garrison Registry 1 | . . . . . . 1 . . . . . . . . . . . . . . . . . . . . . . . . . . . . . . . Patrol Navigation 1 | . . . . . . 1 . . . . . . . . . . . . . . . . . . . . . . . . . . . . . . . Security Stations 1 | . . . . . . 1 . . . . . . . . . . . . . . . . . . . . . . . . . . . . . . . Derelict Proto ID Bank 1 | . . . 1 . . . . . . . . . . . . . . . . . . . . . . . . . . . . . . . . . . Disengage Seal 2 | . . . . . . . . . . . . . . . . . . . . . . . . . . . . . . . . . . . . 2 . Fabricator Hacks 89 | . . . . . . . . 6 . 15 . . . 10 . 10 . . . . 17 . . . . 10 . 3 . . . . 14 . 4 . . Network Status 12 | . . . . . . . . 2 . 2 . . . 2 . 1 . . . . 2 . . . . 2 . . . . . . 1 . . . . Load Schematic 49 | . . . . . . . . 3 . 8 . . . 6 . 5 . . . . 9 . . . . 6 . 3 . . . . 7 . 2 . . Build 28 | . . . . . . . . 1 . 5 . . . 2 . 4 . . . . 6 . . . . 2 . . . . . . 6 . 2 . . Repair Station Hacks 60 | . . . . . 3 . . 3 . 6 . . . 7 . 8 . . . . 16 . . . . 2 . 5 . . . . . . 2 8 . Scan Component 29 | . . . . . 1 . . 1 . 3 . . . 4 . 4 . . . . 8 . . . . 1 . 2 . . . . . . 1 4 . Repair 27 | . . . . . 1 . . 1 . 3 . . . 3 . 4 . . . . 7 . . . . 1 . 2 . . . . . . 1 4 . Refit 4 | . . . . . 1 . . 1 . . . . . . . . . . . . 1 . . . . . . 1 . . . . . . . . . Recycling Unit Hacks 19 | . 1 . . . 1 . . 1 . 3 . . . 1 . . 1 . . . 4 . . . . 5 . . . . . . . . 2 . . Report Inventory 15 | . 1 . . . 1 . . . . 3 . . . 1 . . 1 . . . 3 . . . . 4 . . . . . . . . 1 . . Retrieve Components 4 | . . . . . . . . 1 . . . . . . . . . . . . 1 . . . . 1 . . . . . . . . 1 . . Scanalyzer 51 | . . . . . 10 . . 3 . 12 . . . 4 . 4 . . . . 5 . . . . 4 . 2 . . . . 7 . . . . Insert Component 25 | . . . . . 5 . . 2 . 5 . . . 2 . 2 . . . . 2 . . . . 2 . 1 . . . . 4 . . . . Analyze 26 | . . . . . 5 . . 1 . 7 . . . 2 . 2 . . . . 3 . . . . 2 . 1 . . . . 3 . . . . Garrison Access Hacks 19 | . . . . . 1 . . 1 . 4 . . . 2 . 3 . . . . 2 . . . . 2 . . . . . . 1 2 1 . . Unlock Access 1 | . . . . . 1 . . . . . . . . . . . . . . . . . . . . . . . . . . . . . . . . Seal Access 18 | . . . . . . . . 1 . 4 . . . 2 . 3 . . . . 2 . . . . 2 . . . . . . 1 2 1 . . Unauthorized Hacks 221 | . 5 . . . 7 1 3 9 . 15 . . . 14 . 11 4 . . 5 42 . . . . 37 . 17 . . . . 20 12 8 11 . Terminals 141 | . 4 . . . 7 1 3 4 . 5 . . . 6 . 7 3 . . 5 25 . . . . 18 . 14 . . . . 15 12 1 11 . Track 47 | . . . . . 1 . 1 1 . 2 . . . 2 . 1 1 . . . 12 . . . . 7 . 4 . . . . 5 4 . 6 . Assimilate 21 | . . . . . 3 . . 1 . . . . . 3 . 3 . . . . 3 . . . . 1 . 2 . . . . 2 1 . 2 . Botnet 45 | . 2 . . . 3 1 2 2 . 2 . . . 1 . 2 1 . . 2 10 . . . . 4 . 4 . . . . 3 3 . 3 . Detonate 10 | . . . . . . . . . . . . . . . . . . . . 1 . . . . . 3 . 2 . . . . 2 2 . . . Disrupt 8 | . . . . . . . . . . . . . . . . . 1 . . . . . . . . 2 . 1 . . . . 2 1 1 . . Operators 8 | . 2 . . . . . . . . 1 . . . . . 1 . . . . . . . . . 1 . 1 . . . . 1 1 . . . Sabotage 2 | . . . . . . . . . . . . . . . . . . . . 2 . . . . . . . . . . . . . . . . . Fabricators 44 | . . . . . . . . 4 . 4 . . . 3 . 4 . . . . 10 . . . . 8 . 3 . . . . 5 . 3 . . Report 5 | . . . . . . . . . . . . . . . . . . . . . 2 . . . . 1 . . . . . . 1 . 1 . . Prioritize 8 | . . . . . . . . . . 1 . . . . . 2 . . . . 2 . . . . 1 . . . . . . 1 . 1 . . Liberate 4 | . . . . . . . . 1 . . . . . . . 1 . . . . . . . . . 1 . . . . . . 1 . . . . Haulers 6 | . . . . . . . . 1 . . . . . . . . . . . . 2 . . . . 1 . . . . . . 1 . 1 . . Recompile 21 | . . . . . . . . 2 . 3 . . . 3 . 1 . . . . 4 . . . . 4 . 3 . . . . 1 . . . . Repair Stations . | . . . . . . . . . . . . . . . . . . . . . . . . . . . . . . . . . . . . . . Recycling Units 34 | . 1 . . . . . . 1 . 4 . . . 5 . . 1 . . . 7 . . . . 11 . . . . . . . . 4 . . Monitor 1 | . . . . . . . . . . . . . . . . . . . . . . . . . . . . . . . . . . . 1 . . Reject 11 | . . . . . . . . . . 1 . . . 1 . . 1 . . . 3 . . . . 4 . . . . . . . . 1 . . Recyclers 7 | . . . . . . . . . . 1 . . . 1 . . . . . . 1 . . . . 3 . . . . . . . . 1 . . Mask 14 | . . . . . . . . 1 . 2 . . . 3 . . . . . . 3 . . . . 4 . . . . . . . . 1 . . Tunnel 1 | . 1 . . . . . . . . . . . . . . . . . . . . . . . . . . . . . . . . . . . . Scanalyzers . | . . . . . . . . . . . . . . . . . . . . . . . . . . . . . . . . . . . . . . Garrison Access 2 | . . . . . . . . . . 2 . . . . . . . . . . . . . . . . . . . . . . . . . . . Decoy 2 | . . . . . . . . . . 2 . . . . . . . . . . . . . . . . . . . . . . . . . . . Data Cores Recovered 1 | . . . . . . . . . . . . . . . . . . . . . 1 . . . . . . . . . . . . . . . . Used 1 | . . . . . . . . . . . . . . . . . . . . . 1 . . . . . . . . . . . . . . . . Hacking Detections 168 | . 6 . . . 14 2 4 21 . 25 . . . 20 . 17 5 . . 3 12 . . . . 12 . 5 . . . . 5 3 5 9 . Full Trace Events 24 | . 4 . . . 1 . . 1 . 4 . . . 2 . 4 . . . 1 2 . . . . 2 . . . . . . . . 2 1 . Feedback Events 4 | . . . . . . . . . . 1 . . . 1 . . . . . . 1 . . . . 1 . . . . . . . . . . . Corruption 2 | . . . . . . . . . . 1 . . . 1 . . . . . . . . . . . . . . . . . . . . . . . Hackware Fried 2 | . . . . . . . . . . . . . . . . . . . . . 1 . . . . 1 . . . . . . . . . . . Feedback Blocked . | . . . . . . . . . . . . . . . . . . . . . . . . . . . . . . . . . . . . . . Robot Schematics Acquired 3 | . . . . . . . . . . . . . . . . . . . . . . . . . . 1 . . . . . . 2 . . . . Robots Built 2 | . . . . . . . . 2 . . . . . . . . . . . . . . . . . . . . . . . . . . . . . Authchips . | . . . . . . . . . . . . . . . . . . . . . . . . . . . . . . . . . . . . . . Time 49 | . . . . . . . . 49 . . . . . . . . . . . . . . . . . . . . . . . . . . . . . Total Robot Build Rating 4 | . . . . . . . . 4 . . . . . . . . . . . . . . . . . . . . . . . . . . . . . Part Schematics Acquired 49 | . 1 . . . 6 . . 4 . 5 . . . 2 . 4 . . . . 6 . . . . 3 . 2 . . 4 . 9 3 . . . Parts Built 29 | . . . . . . . . . . 5 . . . 2 . 5 . . . . 7 . . . . 2 . . . . . . 6 . 2 . . Authchips 19 | . . . . . . . . . . 3 . . . 2 . 2 . . . . 4 . . . . 1 . . . . . . 6 . 1 . . Time 1680 | . . . . . . . . . . 412 . . . 91 . 223 . . . . 346 . . . . 155 . . . . . . 342 . 111 . . Total Part Build Rating 207 | . . . . . . . . . . 30 . . . 12 . 32 . . . . 53 . . . . 14 . . . . . . 48 . 18 . . Parts Repaired 27 | . . . . . 1 . . 1 . 3 . . . 3 . 4 . . . . 7 . . . . 1 . 2 . . . . . . 1 4 . Time 1366 | . . . . . 26 . . 13 . 193 . . . 110 . 306 . . . . 335 . . . . 89 . 143 . . . . . . 29 122 . Parts Recycled . | . . . . . . . . . . . . . . . . . . . . . . . . . . . . . . . . . . . . . . Recycled Matter . | . . . . . . . . . . . . . . . . . . . . . . . . . . . . . . . . . . . . . . Retrieved Matter . | . . . . . . . . . . . . . . . . . . . . . . . . . . . . . . . . . . . . . . Retrieved Components 8 | . . . . . . . . 1 . . . . . . . . . . . . 3 . . . . 2 . . . . . . . . 2 . . Parts Scanalyzed 21 | . . . . . 5 . . 1 . 5 . . . 2 . 2 . . . . 2 . . . . 1 . 1 . . . . 2 . . . . Part Schematics Acquired 21 | . . . . . 5 . . 1 . 5 . . . 2 . 2 . . . . 2 . . . . 1 . 1 . . . . 2 . . . . Parts Damaged 2 | . . . . . . . . . . 1 . . . . . . . . . . 1 . . . . . . . . . . . . . . . . Bothacking | -11 -10 -10 -10 -9 -8 -8 -8 -7 -7 -7 -7 -7 -6 -6 -6 -6 -6 -6 -6 -6 -5 -5 -5 -5 -4 -4 -4 -4 -4 -4 -4 -3 -3 -2 -1 -1 -1 ------------ Run | Yrd Mat Min Exi Min Mat Gar Mat Fac Was Fac Low Zio Pro Fac Was Fac Ext Cet Arc Hub Fac Upp Upp War Pro Fac Was Fac Upp Upp Zhi Pro Res Res Acc Com Ac0 Used RIF Installer . | . . . . . . . . . . . . . . . . . . . . . . . . . . . . . . . . . . . . . . Robots Hacked 18 | . . . 4 . . . . . . 2 1 4 . . . . . . . . . . . 6 . 1 . . . . . . . . . . . Non-combat 8 | . . . 3 . . . . . . 2 1 . . . . . . . . . . . . 1 . 1 . . . . . . . . . . . Combat 10 | . . . 1 . . . . . . . . 4 . . . . . . . . . . . 5 . . . . . . . . . . . . . Robot Hacks Applied 19 | . . . 4 . . . . . . 2 1 4 . . . . . . . . . . . 6 . 2 . . . . . . . . . . . parse_system 16 | . . . 4 . . . . . . 1 1 4 . . . . . . . . . . . 6 . . . . . . . . . . . . . no_distress 2 | . . . . . . . . . . 1 . . . . . . . . . . . . . . . 1 . . . . . . . . . . . find_dsf 1 | . . . . . . . . . . . . . . . . . . . . . . . . . . 1 . . . . . . . . . . . Relay Couplers Released 29 | . . . . . . 28 . . . . . . . . . . . . . . . . . . . 1 . . . . . . . . . . . Machine Destruction 26 | . . . . . . 25 . . . . . . . . . . . . . . . . . . . 1 . . . . . . . . . . . Programmers 3 | . . . . . . 3 . . . . . . . . . . . . . . . . . . . . . . . . . . . . . . . Fabnet Peak Effective % . | . . . . . . . . . . . . . . . . . . . . . . . . . . . . . . . . . . . . . . Robots Rewired 13 | . . . . . . 3 . 1 . . . . . . . . 7 . . . . 2 . . . . . . . . . . . . . . . Allies Hacked 2 | . . . . . . . . . . . . . . . . . . . . . 1 . . . . 1 . . . . . . . . . . . Hacks Repelled . | . . . . . . . . . . . . . . . . . . . . . . . . . . . . . . . . . . . . . . Allies | -11 -10 -10 -10 -9 -8 -8 -8 -7 -7 -7 -7 -7 -6 -6 -6 -6 -6 -6 -6 -6 -5 -5 -5 -5 -4 -4 -4 -4 -4 -4 -4 -3 -3 -2 -1 -1 -1 -------- Run | Yrd Mat Min Exi Min Mat Gar Mat Fac Was Fac Low Zio Pro Fac Was Fac Ext Cet Arc Hub Fac Upp Upp War Pro Fac Was Fac Upp Upp Zhi Pro Res Res Acc Com Ac0 Total Allies 51 | . . . . . 2 3 . 7 1 . . 2 . 6 . 5 12 . . . 2 2 . . . 1 1 1 . . . . 2 1 2 1 . Largest Group 5 | . . . . . 1 3 3 5 1 . . 2 2 4 . 3 5 3 . . 2 2 2 . . 1 1 1 . . . . 2 1 2 1 . Highest-Rated Group 192 | . . . . . 10 30 30 78 16 . . 82 82 119 . 87 144 71 . . 36 59 59 . . 26 46 26 . . . . 71 26 192 45 . Highest-Rated Ally 96 | . . . . . 10 10 10 26 16 . . 51 51 31 . 29 39 31 . . 26 30 30 . . 26 46 26 . . . . 45 26 96 45 . Total Orders 23 | . . . . . 2 . . . . . . . 1 . . . . . . . . . 5 1 4 1 . 1 2 1 . 3 2 . . . . STAY 6 | . . . . . 1 . . . . . . . . . . . . . . . . . 2 . . 1 . 1 . . . . 1 . . . . FOLLOW 4 | . . . . . 1 . . . . . . . . . . . . . . . . . 2 . . . . . . . . . 1 . . . . EXPLORE 6 | . . . . . . . . . . . . . . . . . . . . . . . . . 3 . . . . . . 3 . . . . . RETURN 7 | . . . . . . . . . . . . . 1 . . . . . . . . . 1 1 1 . . . 2 1 . . . . . . . Ally Attacks 194 | . . . . . . 8 10 23 1 . . . 8 27 . 16 50 7 . . . . 9 . . . 2 . . . . . . . 33 . . Total Damage 4114 | . . . . . . 153 199 343 17 . . . 242 425 . 246 916 126 . . . . 223 . . . 59 . . . . . . . 1165 . . Kills 31 | . . . . . . 3 1 2 . . . . 1 6 . 1 8 . . . . . 2 . . . . . . . . . . . 7 . . Allies Corrupted . | . . . . . . . . . . . . . . . . . . . . . . . . . . . . . . . . . . . . . . Allies Melted 3 | . . . . . . . . . . . . . . . . . . . . . . . . 1 . . . . . . . . . 2 . . . Intel | -11 -10 -10 -10 -9 -8 -8 -8 -7 -7 -7 -7 -7 -6 -6 -6 -6 -6 -6 -6 -6 -5 -5 -5 -5 -4 -4 -4 -4 -4 -4 -4 -3 -3 -2 -1 -1 -1 ------- Run | Yrd Mat Min Exi Min Mat Gar Mat Fac Was Fac Low Zio Pro Fac Was Fac Ext Cet Arc Hub Fac Upp Upp War Pro Fac Was Fac Upp Upp Zhi Pro Res Res Acc Com Ac0 Robot Analysis Total 10 | . 2 . . . 1 . . . . . . . . . . . . . . . . . . . . . . . . . 4 . 1 2 . . . Derelict Logs Recovered 12 | . . 3 . 2 . . . . . . 1 . . . . . . . . . . 1 2 . 1 . . . . 2 . . . . . . . Drone Launches 47 | . . . . . . . . . . . 1 . 1 . . . . . . 1 . 3 . . 5 . . 25 1 2 . 8 . . . . . Drone Recoveries 28 | . . . . . . . . . . . . . 2 . . . . . . . . 2 . 1 4 . . 7 8 2 . 2 . . . . . Decoded 0b10 Intel 70 | . . . . . . . . . . . . . . . . . . . . . . . . . . 16 . 8 . . . . 15 6 25 . . Traps 57 | . . . . . . . . . . . . . . . . . . . . . . . . . . 13 . 6 . . . . 15 1 22 . . Emergency Access 13 | . . . . . . . . . . . . . . . . . . . . . . . . . . 3 . 2 . . . . . 5 3 . . Exploration | -11 -10 -10 -10 -9 -8 -8 -8 -7 -7 -7 -7 -7 -6 -6 -6 -6 -6 -6 -6 -6 -5 -5 -5 -5 -4 -4 -4 -4 -4 -4 -4 -3 -3 -2 -1 -1 -1 ------------- Run | Yrd Mat Min Exi Min Mat Gar Mat Fac Was Fac Low Zio Pro Fac Was Fac Ext Cet Arc Hub Fac Upp Upp War Pro Fac Was Fac Upp Upp Zhi Pro Res Res Acc Com Ac0 Turns Passed 44904 | 66 623 921 368 515 4105 2559 665 1728 35 5821 701 1017 330 2719 23 1403 464 30 3573 74 1479 1287 951 375 731 1011 15 439 422 148 72 668 775 965 1326 5616 884 Spaces Moved 41303 | 46 314 543 271 328 1091 1052 385 3108 93 4422 684 983 309 4745 109 2115 747 86 406 250 3043 785 494 1098 760 2210 65 968 349 394 166 405 1303 1802 1524 3546 304 Core 426 | 1 . . . . . . . 1 . . . . . 1 . 1 . . 341 . . . . 5 . 1 . . . . . . . . . . 75 Treads 3456 | . 2 1 . . 2 561 256 . . . . . . . . . . . . . . . . . . . . . . . . . . . . 2408 226 Legs 56 | . . . . . . . . . . . . . . . . . . . . . . . . . . . . . . . . . . . . 53 3 Wheels 3069 | 45 312 542 271 328 1089 482 . . . . . . . . . . . . . . . . . . . . . . . . . . . . . . . Hover 2890 | . . . . . . 9 . . . . . . . . . . . . . . . . . . . . . . . . . . . 272 1524 1085 . Flight 31406 | . . . . . . . 129 3107 93 4422 684 983 309 4744 109 2114 747 86 65 250 3043 785 494 1093 760 2209 65 968 349 394 166 405 1303 1530 . . . Fastest Speed 13 | 50 95 140 130 145 110 145 26 26 26 21 21 101 101 15 16 16 13 13 13 15 15 15 187 15 15 15 22 22 24 24 24 24 24 24 49 41 50 Average Speed 61 | 87 120 150 131 145 138 173 116 29 27 24 100 101 101 16 16 28 18 13 547 19 19 153 187 18 60 19 22 25 98 33 32 99 26 43 55 122 123 Slowest Speed 650 | 95 320 320 145 145 240 240 166 150 29 102 101 101 101 100 16 500 112 19 650 112 109 187 199 150 105 150 22 112 114 110 110 110 110 131 124 305 250 Overloaded Moves 1 | . . . . . . . . . . . . . . . . . . . . . . . . . . 1 . . . . . . . . . . . Propulsion Burnouts . | . . . . . . . . . . . . . . . . . . . . . . . . . . . . . . . . . . . . . . Robots Hopped 177 | . . . . . . . . 18 . 9 . . . 49 . 11 28 2 1 5 9 . . . 9 16 . 5 . . . . 11 4 . . . Cave-ins Triggered . | . . . . . . . . . . . . . . . . . . . . . . . . . . . . . . . . . . . . . . Teleports 1 | . . . . . . . . . . . . . . . . . . . . . . . . . . . . . . . . . . . . 1 . Exploration Rate (%) 60 | 3 62 87 70 75 83 81 24 71 74 63 92 85 52 61 77 48 70 48 74 22 64 72 72 95 96 54 63 29 59 58 60 57 32 41 33 83 20 Regions Visited 37 Branch Regions 20 Pre-discovered Areas 8 | . 1 . 1 1 . . . . . . 1 1 . . . . . . . . . . . . . . . . . . 3 . . . . . . Known Exits Taken 15 | . 1 . . . 1 . 1 . . 1 1 1 . . . 1 . . . 1 1 . . . 1 . . 1 . . . 1 1 1 1 . . Unknown Exits Taken 15 | 1 . 1 1 1 . . . . . . . . 1 . . . 1 1 1 . . 1 1 1 . . . . 1 1 1 . . . . 1 . Scrap Searched 18 | . . 1 . 1 . . . . . . 3 2 . . . . . . . . . 1 4 . 2 . . . 3 1 . . . . . . . Spaces Dug 348 | . . . . 9 10 13 . 11 . 22 . . . 38 . 22 . . . 3 22 . . 1 12 68 . 21 . . . 10 12 15 49 10 . Terrain Destroyed 1167 | . 4 . . 9 30 125 4 31 . 22 . . . 38 . 22 . . . 3 22 154 . 1 12 258 . 59 . . . 10 12 15 56 61 219 Melee 250 | . . . . . . . . 11 . 22 . . . 38 . 22 . . . 3 20 . . 1 10 45 . 21 . . . 10 11 15 13 8 . Projectile 116 | . . . . . 2 . 4 . . . . . . . . . . . . . 2 1 . . 2 4 . . . . . . 1 . 4 3 93 AOE 801 | . 4 . . 9 28 125 . 20 . . . . . . . . . . . . . 153 . . . 209 . 38 . . . . . . 39 50 126 Terrain Rammed . | . . . . . . . . . . . . . . . . . . . . . . . . . . . . . . . . . . . . . . Walls Destroyed . | . . . . . . . . . . . . . . . . . . . . . . . . . . . . . . . . . . . . . . Machines Disabled . | . . . . . . . . . . . . . . . . . . . . . . . . . . . . . . . . . . . . . . Actions | -11 -10 -10 -10 -9 -8 -8 -8 -7 -7 -7 -7 -7 -6 -6 -6 -6 -6 -6 -6 -6 -5 -5 -5 -5 -4 -4 -4 -4 -4 -4 -4 -3 -3 -2 -1 -1 -1 --------- Run | Yrd Mat Min Exi Min Mat Gar Mat Fac Was Fac Low Zio Pro Fac Was Fac Ext Cet Arc Hub Fac Upp Upp War Pro Fac Was Fac Upp Upp Zhi Pro Res Res Acc Com Ac0 Total 58633 | 60 473 600 282 359 3431 1491 585 3881 102 9083 697 1007 326 6530 114 2813 1021 100 1747 258 3815 837 517 1261 996 2649 64 1100 393 407 179 646 1676 1954 1903 4597 679 Wait 14415 | . 91 20 1 6 2106 127 128 598 4 4463 2 19 17 1569 . 607 213 12 1327 1 591 6 17 108 224 248 . 82 20 10 . 227 295 60 260 757 199 Move 40943 | 45 313 542 270 327 1090 1051 384 3073 92 4404 683 982 308 4654 108 2092 701 81 403 242 3024 784 493 1097 744 2178 64 957 348 393 165 404 1282 1793 1523 3545 304 Hop 149 | . . . . . . . . 17 . 8 . . . 42 . 11 17 2 1 2 9 . . . 6 16 . 5 . . . . 9 4 . . . Pick Up 303 | 4 12 7 3 5 26 11 8 15 2 34 1 1 . 32 1 9 2 1 3 . 29 4 1 3 . 16 . 7 2 . 2 . 13 8 9 21 11 Fast Attach 295 | 7 2 1 . 1 15 12 5 6 1 23 4 . . 19 2 7 3 . 2 4 22 4 1 12 . 16 . 1 1 . 3 . 14 27 20 48 12 Attach 180 | . 2 5 1 3 8 12 10 12 1 11 . . . 11 . 6 2 1 . 1 15 3 1 1 1 12 . 5 2 . . . 8 4 7 19 16 Detach 58 | . 1 . 1 . 2 3 . 13 . 3 . . . 4 . 2 1 . . . 5 1 . 2 1 3 . 2 . . 1 . 1 . 2 4 6 Swap 278 | . 3 . . 8 14 31 5 24 . 13 2 . 1 29 . 14 . 2 . 4 19 10 2 10 8 18 . 2 1 4 . 1 5 6 7 16 19 Drop 447 | . 4 . 2 3 33 8 29 15 2 37 4 1 . 40 3 11 6 1 4 . 33 8 2 17 . 27 . 5 . . 5 1 18 35 23 59 11 Fire 507 | 4 45 25 . 1 137 135 12 3 . . . . . 1 . . . . . . 2 12 . . 1 3 . . . . . . 1 . 14 10 101 Melee 694 | . . . 4 5 . 7 4 26 . 55 1 4 . 92 . 41 11 . 7 4 60 5 . 11 11 75 . 34 19 . 3 13 30 17 38 117 . Ram . | . . . . . . . . . . . . . . . . . . . . . . . . . . . . . . . . . . . . . . Kick . | . . . . . . . . . . . . . . . . . . . . . . . . . . . . . . . . . . . . . . Crush . | . . . . . . . . . . . . . . . . . . . . . . . . . . . . . . . . . . . . . . Escape Stasis 98 | . . . . . . 2 . 18 . 11 . . . . . . 36 . . . . . . . . 31 . . . . . . . . . . . Rewire 98 | . . . . . . 66 . 2 . . . . . . . . 29 . . . . . . . . . . . . . . . . . . 1 . Trap 142 | . . . . . . . . 59 . 21 . . . 37 . 13 . . . . 6 . . . . 6 . . . . . . . . . . . Miscellaneous 26 | . . . . . . 26 . . . . . . . . . . . . . . . . . . . . . . . . . . . . . . . Route ------- -11/Scrapyard -10/Materials (discovered 3 exits: [*Mat] / *Min x2) -10/Mines (discovered 2 exits: [*Mat] / *Exi) -10/Exiles (discovered 2 exits: *Min x2) -9/Mines -8/Materials (discovered 4 exits: *Fac x3 / Gar) -8/Garrison (discovered 3 exits: *Mat x3) -8/Materials -7/Factory (discovered 3 exits: *Fac / *Low x2) -7/Waste -7/Factory (discovered 4 exits: *Fac x2 / *Low x2) -7/Lower Caves (discovered 2 exits: *Low / *Zio) -7/Zion -6/Proximity Caves -6/Factory (discovered 5 exits: *Fac / *Low x2 / *Ext x2) -6/Waste -6/Factory (discovered 7 exits: *Fac x3 / *Low x2 / *Ext x2) -6/Extension (discovered 2 exits: *Fac / [*Cet]) -6/Cetus -6/Archives (discovered 2 exits: *Fac / *Hub) -6/Hub_04(d) (discovered 4 exits: *Fac x4) -5/Factory (discovered 6 exits: *Fac x4 / *Upp x2) -5/Upper Caves -5/Upper Caves -5/Warlord -4/Proximity Caves -4/Factory (discovered 6 exits: *Res x4 / Upp x2) -4/Waste -4/Factory (discovered 6 exits: *Res x4 / *Upp x2) -4/Upper Caves -4/Upper Caves (discovered 2 exits: *Res / *Zhi) -4/Zhirov -3/Proximity Caves -3/Research (discovered 6 exits: *Res x3 / Arm / Qua x2) -2/Research (discovered 5 exits: *Acc x3 / *Tes x2) -1/Access -1/Command (discovered 3 exits: *Sur x2 / [*Ac0]) -1/Access_0 History --------- Turn | Location | Event 18 | -11/Scrapyard | Discovered new exit (range 16) 67 | -11/Scrapyard | Entered Materials 199 | -10/Materials | Discovered new exit (range 5) 242 | -10/Materials | Discovered new exit (range 5) 317 | -10/Materials | Build established: Mutant 450 | -10/Materials | Discovered new exit (range 16) 618 | -10/Materials | Identified exit to Mines 690 | -10/Materials | Entered Mines 691 | -10/Mines | Assembled infested the area 696 | -10/Mines | Met a Derelict bent on vengeance 777 | -10/Mines | Core integrity fell below 50% 811 | -10/Mines | Lost 3 parts (1p1n1w) 1273 | -10/Mines | Learned 2 Materials zone layouts 1325 | -10/Mines | Learned Materials stockpile data 1328 | -10/Mines | Learned location of 1 exit from Materials 1366 | -10/Mines | Discovered new exit (range 7) 1605 | -10/Mines | Discovered new exit (range 5) 1611 | -10/Mines | Entered Exiles 1633 | -10/Exiles | Discovered new exit (range 15) 1651 | -10/Exiles | Met 8R-AWN 1678 | -10/Exiles | Met EX-HEX 1731 | -10/Exiles | Met EX-DEC 1767 | -10/Exiles | Learned location of Zion (-7) 1792 | -10/Exiles | Met EX-BIN 1812 | -10/Exiles | Aligned with FarCom system 1813 | -10/Exiles | Given EX-Vault access code 1843 | -10/Exiles | Opened EX-Vault 1852 | -10/Exiles | Found Longsword +1 1881 | -10/Exiles | Warned to stay clear of 0b10 Research branches 1967 | -10/Exiles | Discovered new exit (range 10) 1979 | -10/Exiles | Left Exiles lab with Longsword +1 1979 | -10/Exiles | Entered Mines 2144 | -9/Mines | YI-UF0 nonchalantly dropped a Grenade Launcher on the ground 2166 | -9/Mines | Murdered YI-UF0 2166 | -9/Mines | Destroyed YI-UF0 2170 | -9/Mines | Found Prototype Launcher 2172 | -9/Mines | Identified YI-UF0's Doublenader 2278 | -9/Mines | Found the Drone Emporium 2288 | -9/Mines | Found Prototype Device 2364 | -9/Mines | Learned location of 1 exit from Materials 2406 | -9/Mines | Discovered new exit (range 8) 2494 | -9/Mines | Entered Materials 2494 | -8/Materials | Evolved 4 slots: Propulsion x2, Utility x2 2494 | -8/Materials | Identified Sensor Drone Bay 2495 | -8/Materials | Identified exit to Factory 2942 | -8/Materials | Lost 4 parts (2n1u1w) 3264 | -8/Materials | Repaired Lgt. Armor Plating 3269 | -8/Materials | Garrison activated, responded to threat 3323 | -8/Materials | Build established: Scavenger-Mutant 3466 | -8/Materials | Identified exit to Garrison 3477 | -8/Materials | Garrison activated, responded to threat 5367 | -8/Materials | Build established: Mutant 6599 | -8/Materials | Entered Garrison 6693 | -8/Garrison | Triggered checkpoint 6734 | -8/Garrison | Garrison Relay disabled 6793 | -8/Garrison | Triggered checkpoint 6838 | -8/Garrison | Destroyed 7 combat bots 7013 | -8/Garrison | Triggered checkpoint 7085 | -8/Garrison | Garrison Relay disabled 7210 | -8/Garrison | Discovered new exit (range 15) 7211 | -8/Garrison | Triggered checkpoint 7529 | -8/Garrison | Triggered checkpoint 7730 | -8/Garrison | Spotted B-75 Beast 7796 | -8/Garrison | Core integrity fell below 50% 7815 | -8/Garrison | Destroyed B-75 Beast 7843 | -8/Garrison | Lost 10 parts (1p4n3u2w) 7929 | -8/Garrison | Garrison Relay disabled 8047 | -8/Garrison | Triggered checkpoint 8088 | -8/Garrison | Garrison Relay disabled 8112 | -8/Garrison | Build established: Scavenger-Mutant 8143 | -8/Garrison | Phase Generator disabled 8198 | -8/Garrison | Garrison Relay disabled 8229 | -8/Garrison | Discovered new exit (range 13) 8296 | -8/Garrison | Discovered new exit (range 74) 8296 | -8/Garrison | Discovered new exit (range 45) 8296 | -8/Garrison | Discovered new exit (range 6) 8646 | -8/Garrison | Learned Materials security intel 8675 | -8/Garrison | Triggered checkpoint 8717 | -8/Garrison | Triggered checkpoint 8719 | -8/Garrison | Core integrity fell below 20% 8762 | -8/Garrison | Garrison Relay disabled 9057 | -8/Garrison | Triggered checkpoint 9158 | -8/Garrison | Entered Materials 9158 | -8/Materials | Accompanied by 3 allies 9427 | -8/Materials | Found Powered Armor 9431 | -8/Materials | Found Powered Armor 9434 | -8/Materials | Found Powered Armor 9612 | -8/Materials | Discovered exit to Factory (range 4) 9823 | -8/Materials | Entered Factory 9823 | -7/Factory | Evolved 2 slots: Utility x2 10001 | -7/Factory | Identified exit to Lower Caves 10385 | -7/Factory | Build established: Scout 10585 | -7/Factory | Fabricated Y-45 Defender? 10789 | -7/Factory | Lost 3 allies 11058 | -7/Factory | Discovered new exit (range 5) 11082 | -7/Factory | Cargo convoy interrupted 11158 | -7/Factory | Repaired Structural Scanner 11551 | -7/Factory | Sucked down chute 11551 | -7/Factory | Entered Waste 11551 | -7/Waste | Met up with 1 ally sucked down the chute earlier 11557 | -7/Waste | Spotted C-40 Crusher 11562 | -7/Waste | Spotted C-40 Crusher 11563 | -7/Waste | Spotted C-40 Crusher 11566 | -7/Waste | EMP discharged 11566 | -7/Waste | System corruption reached 10% 11568 | -7/Waste | Spotted C-40 Crusher 11568 | -7/Waste | Spotted C-40 Crusher 11568 | -7/Waste | Crushed by Compactor (1 part destroyed, 2 dropped) 11581 | -7/Waste | Discovered new exit (range 15) 11581 | -7/Waste | Spotted C-40 Crusher 11586 | -7/Waste | Entered Factory 11611 | -7/Factory | Discovered new exit (range 6) 12100 | -7/Factory | Build established: Hacker-Scout 12368 | -7/Factory | Found Prototype Launcher 12392 | -7/Factory | Fabricated Adv. Hacking Suite? 12411 | -7/Factory | Fabricated Exp. Cesium-ion Thruster? 12970 | -7/Factory | Repaired Exp. Cesium-ion Thruster 13031 | -7/Factory | Repaired Imp. VTOL Module 13289 | -7/Factory | Discovered new exit (range 15) 13344 | -7/Factory | Repaired System Restoration Module 14324 | -7/Factory | Fabricated Adv. Hacking Suite? 14385 | -7/Factory | Fabricated Adv. Hacking Suite? 16806 | -7/Factory | Fabricated Exp. Cesium-ion Thruster? 17211 | -7/Factory | Identified Rocket Array 17407 | -7/Factory | Entered Lower Caves 17413 | -7/Lower Caves | Met a Warlord Commander 17414 | -7/Lower Caves | Learned location of Warlord (-5) 17415 | -7/Lower Caves | Warlord Commander delivered Encrypted Comm Array 17713 | -7/Lower Caves | Build established: Hacker-Mutant 17826 | -7/Lower Caves | Encountered a Warlord checkpoint 17916 | -7/Lower Caves | Discovered new exit (range 8) 17927 | -7/Lower Caves | Identified exit to Lower Caves 18090 | -7/Lower Caves | A Derelict revealed a hidden shortcut to a safe place 18099 | -7/Lower Caves | Identified exit to Zion 18108 | -7/Lower Caves | Entered Zion 18108 | -7/Zion | Accompanied by 1 ally 18176 | -7/Zion | Discovered new exit (range 9) 18197 | -7/Zion | Identified exit to Proximity Caves 18337 | -7/Zion | Gained Derelict followers 18520 | -7/Zion | Rebuked by Imprinter 18600 | -7/Zion | Given the Hacking Drone Bay 18689 | -7/Zion | Learned Factory scanalyzer intel 18705 | -7/Zion | Found CR-A16's Pointy Stick 18736 | -7/Zion | Given A8's code to call for help 18871 | -7/Zion | Visited the Megawrench Repair Shop 18871 | -7/Zion | Megawrench repaired 4 parts 19125 | -7/Zion | Entered Proximity Caves 19125 | -6/Proximity Caves | Accompanied by 3 allies 19364 | -6/Proximity Caves | Discovered new exit (range 13) 19455 | -6/Proximity Caves | Entered Factory 19455 | -6/Factory | Evolved 2 slots: Propulsion x1, Utility x1 19456 | -6/Factory | Identified exit to Extension 19457 | -6/Factory | Loaded intel: 4 scanalyzer locations 19519 | -6/Factory | Repaired Imp. VTOL Module 19571 | -6/Factory | Identified exit to Lower Caves 19823 | -6/Factory | Build established: Hacker-Scout 19999 | -6/Factory | Fabricated Adv. Hacking Suite (x1) 20244 | -6/Factory | Garrison activated, responded to threat 20258 | -6/Factory | Discovered new exit (range 7) 20455 | -6/Factory | Repaired Imp. Transmission Jammer 20528 | -6/Factory | Repaired Mic. Nuclear Core 20622 | -6/Factory | Cargo convoy interrupted 20865 | -6/Factory | Found Prototype Hackware 21326 | -6/Factory | Identified Exp. System Shield 21727 | -6/Factory | Fabricated Exp. Cesium-ion Thruster? 22165 | -6/Factory | Found Prototype Launcher 22165 | -6/Factory | Identified Scatter Rocket Array 22174 | -6/Factory | Sucked down chute 22174 | -6/Factory | Entered Waste 22178 | -6/Waste | Found Prototype Processor 22178 | -6/Waste | Identified Spectral Analyzer 22189 | -6/Waste | EMP discharged 22189 | -6/Waste | System corruption reached 10% 22190 | -6/Waste | Spotted C-40 Crusher 22192 | -6/Waste | Spotted C-40 Crusher 22193 | -6/Waste | Spotted C-40 Crusher 22194 | -6/Waste | Spotted C-40 Crusher 22194 | -6/Waste | Spotted C-40 Crusher 22195 | -6/Waste | Discovered new exit (range 16) 22197 | -6/Waste | Entered Factory 22218 | -6/Factory | Discovered new exit (range 16) 22298 | -6/Factory | Fabricated Exp. Cesium-ion Thruster? 22350 | -6/Factory | Discovered new exit (range 8) 22382 | -6/Factory | Identified exit to Factory 22463 | -6/Factory | Repaired Exp. Cesium-ion Thruster? 22481 | -6/Factory | Repaired Exp. Cesium-ion Thruster 22575 | -6/Factory | Fabricated Adv. Hacking Suite? 22619 | -6/Factory | Discovered exit to Lower Caves (range 5) 22732 | -6/Factory | Discovered exit to Factory (range 15) 22820 | -6/Factory | Repaired Exp. Cesium-ion Thruster? 22861 | -6/Factory | Repaired Adv. Gravity Neutralizer? 23061 | -6/Factory | Build established: Hacker-Assassin 23262 | -6/Factory | Fabricated Exp. Cesium-ion Thruster (x1) 23404 | -6/Factory | Fabricated Imp. Fusion Compressor (x2) 23600 | -6/Factory | Entered Extension 23659 | -6/Extension | Spotted B-75 Beast 23659 | -6/Extension | Spotted B-75 Beast 23680 | -6/Extension | Discovered new exit (range 16) 23680 | -6/Extension | Discovered exit to Factory (range 15) 23708 | -6/Extension | Rescued a captive Derelict 23730 | -6/Extension | Rescued a captive Derelict 23732 | -6/Extension | Rescued a captive Derelict 23734 | -6/Extension | Rescued a captive Derelict 23807 | -6/Extension | Lost 3 allies 23850 | -6/Extension | Rescued a captive Derelict 23851 | -6/Extension | Rescued a captive Derelict 23883 | -6/Extension | Build established: Hacker-Scout 23950 | -6/Extension | Search patrols dispatched 24064 | -6/Extension | Entered Cetus 24064 | -6/Cetus | Accompanied by 3 allies 24084 | -6/Cetus | Spotted Cetus Guard 24084 | -6/Cetus | Spotted Cetus Guard 24085 | -6/Cetus | Spotted Cetus Guard 24085 | -6/Cetus | Spotted Cetus Guard 24092 | -6/Cetus | Discovered new exit (range 15) 24094 | -6/Cetus | Entered Archives 24399 | -6/Archives | Build established: Hacker-Mutant 27665 | -6/Archives | Discovered exit to Factory (range 13) 27666 | -6/Archives | Discovered new exit (range 13) 27667 | -6/Archives | Entered Hub_04(d) 27706 | -6/Hub_04(d) | Network Hub disabled 27715 | -6/Hub_04(d) | Network Hub disabled 27720 | -6/Hub_04(d) | Network Hub disabled 27739 | -6/Hub_04(d) | Spotted Lightning 27741 | -6/Hub_04(d) | Entered Factory 27741 | -5/Factory | Evolved 2 slots: Power x1, Utility x1 27797 | -5/Factory | Repaired Adv. Gravity Neutralizer 27859 | -5/Factory | Repaired Broken Exp. Cesium-ion Thruster 27893 | -5/Factory | Identified exit to Upper Caves 27936 | -5/Factory | Identified exit to Factory 27959 | -5/Factory | Adv. Hacking Suite fried by hacking feedback 28025 | -5/Factory | Spotted B-75 Beast 28204 | -5/Factory | Fabricated Quantum Reactor (x2) 28395 | -5/Factory | Central database locked down 28396 | -5/Factory | Fabricated Exp. Hacking Suite (x1) 28452 | -5/Factory | Fabricated Exp. Hacking Suite (x1) 28522 | -5/Factory | Fabricated Exp. Hacking Suite (x1) 28570 | -5/Factory | Fabricated Exp. Hacking Suite (x1) 28602 | -5/Factory | Build established: Hacker-Sprinter 28805 | -5/Factory | Fabricated Adv. Matter Compressor (x1) 28934 | -5/Factory | Repaired Exp. Cesium-ion Thruster 28981 | -5/Factory | Repaired Exp. Cesium-ion Thruster 29026 | -5/Factory | Repaired Exp. Cesium-ion Thruster 29082 | -5/Factory | Repaired Centrium Medium Armor Plating 29127 | -5/Factory | Repaired Kinetic Spear 29220 | -5/Factory | Entered Upper Caves 29246 | -5/Upper Caves | Learned Factory garrison access intel 29506 | -5/Upper Caves | Build established: Hacker-Mutant 29821 | -5/Upper Caves | Encountered a Warlord checkpoint 29865 | -5/Upper Caves | Discovered new exit (range 5) 30507 | -5/Upper Caves | Entered another Upper Caves area 30507 | -5/Upper Caves | Accompanied by 3 allies 30839 | -5/Upper Caves | Encountered a Warlord checkpoint 31216 | -5/Upper Caves | Discovered new exit (range 16) 31227 | -5/Upper Caves | Learned 12 Factory zone layouts 31424 | -5/Upper Caves | Learned location of 1 exit from Factory 31458 | -5/Upper Caves | Entered Warlord 31458 | -5/Warlord | Accompanied by 1 ally 31472 | -5/Warlord | Discovered new exit (range 14) 31531 | -5/Warlord | Visited the Vortex Lab 31534 | -5/Warlord | Found Prototype Launcher 31539 | -5/Warlord | Found Prototype Energy Cannon 31539 | -5/Warlord | Identified Vortex Driver 31554 | -5/Warlord | Warlord's base attacked by MAIN.C 31586 | -5/Warlord | Met Warlord 31616 | -5/Warlord | Found Spectral Analyzer 31620 | -5/Warlord | Found Prototype Reactor 31620 | -5/Warlord | Identified Vortex Chain Reactor 31712 | -5/Warlord | Opened side exit 31714 | -5/Warlord | Spotted B-75 Beast 31754 | -5/Warlord | Warlord forces counterattacked 31821 | -5/Warlord | Lost 3 allies 31833 | -5/Warlord | Entered Proximity Caves 31852 | -4/Proximity Caves | Spotter reported a threat 31890 | -4/Proximity Caves | Spotted B-86 Titan 31979 | -4/Proximity Caves | Spotter reported a threat 32141 | -4/Proximity Caves | Build established: Mutant 32522 | -4/Proximity Caves | Spotter reported a threat 32547 | -4/Proximity Caves | Attracted the attention of an 0b10 outpost 32552 | -4/Proximity Caves | Learned Research emergency access door positions 32555 | -4/Proximity Caves | Attracted the attention of an 0b10 checkpoint 32563 | -4/Proximity Caves | Discovered exit to Factory (range 3) 32564 | -4/Proximity Caves | Entered Factory 32564 | -4/Factory | Evolved 2 slots: Utility x2 32565 | -4/Factory | Identified exit to Research 32567 | -4/Factory | Loaded intel: 4 garrison access locations 32573 | -4/Factory | Identified Vortex Catalyst Activator 32674 | -4/Factory | Identified exit to Upper Caves 32708 | -4/Factory | Exp. Hacking Suite fried by hacking feedback 32739 | -4/Factory | Lost 3 parts (2n1u) 32785 | -4/Factory | Fabricated Exp. Hacking Suite (x1) 32814 | -4/Factory | Search patrols dispatched 33064 | -4/Factory | Search patrols dispatched 33083 | -4/Factory | Repaired Exp. Cesium-ion Thruster 33318 | -4/Factory | Cargo convoy interrupted 33490 | -4/Factory | Fabricated Exp. Hacking Suite (x1) 33575 | -4/Factory | Sucked down chute 33575 | -4/Factory | Entered Waste 33576 | -4/Waste | Met a frightened Derelict 33577 | -4/Waste | Spotted C-40 Crusher 33581 | -4/Waste | Spotted C-40 Crusher 33584 | -4/Waste | Spotted C-40 Crusher 33584 | -4/Waste | Spotted C-40 Crusher 33588 | -4/Waste | Discovered new exit (range 10) 33590 | -4/Waste | EMP discharged 33590 | -4/Waste | Entered Factory 33631 | -4/Factory | Build established: Hacker-Scout 33883 | -4/Factory | Repaired Exp. Cesium-ion Thruster 33992 | -4/Factory | Repaired Centrium Medium Armor Plating? 34001 | -4/Factory | Spotted B-86 Titan 34014 | -4/Factory | Central database locked down 34029 | -4/Factory | Entered Upper Caves 34029 | -4/Upper Caves | Accompanied by 9 allies 34032 | -4/Upper Caves | Lost 3 parts (2p1u) 34037 | -4/Upper Caves | System corruption reached 10% 34087 | -4/Upper Caves | Lost 8 allies 34130 | -4/Upper Caves | Encountered a Warlord checkpoint 34324 | -4/Upper Caves | Build established: Wizard-Mutant 34446 | -4/Upper Caves | Discovered new exit (range 14) 34451 | -4/Upper Caves | Entered another Upper Caves area 34453 | -4/Upper Caves | Discovered exit to Research (range 9) 34455 | -4/Upper Caves | Encountered a Warlord checkpoint 34493 | -4/Upper Caves | Spotted B-86 Titan 34520 | -4/Upper Caves | Attracted the attention of an 0b10 outpost 34552 | -4/Upper Caves | Learned Research stockpile data 34589 | -4/Upper Caves | Discovered new exit (range 12) 34599 | -4/Upper Caves | Entered Zhirov 34599 | -4/Zhirov | Discovered new exit (range 3) 34604 | -4/Zhirov | Met Zhirov 34608 | -4/Zhirov | Learned location of Quarantine (-3) 34608 | -4/Zhirov | Learned location of Testing (-2) 34608 | -4/Zhirov | Learned location of Command (-1) 34611 | -4/Zhirov | Zhirov requested help retrieving the SGEMP Prototype 34615 | -4/Zhirov | Found Alien Artifact 34615 | -4/Zhirov | Identified Integrated Reactor 34615 | -4/Zhirov | Installed Integrated Reactor, increased core energy generation (+10) 34656 | -4/Zhirov | Found Alien Artifact 34671 | -4/Zhirov | Entered Proximity Caves 34674 | -3/Proximity Caves | Spotter reported a threat 35321 | -3/Proximity Caves | Attracted the attention of an 0b10 checkpoint 35337 | -3/Proximity Caves | Discovered exit to Research (range 10) 35339 | -3/Proximity Caves | Entered Research 35339 | -3/Research | Evolved 2 slots: Utility x2 35348 | -3/Research | Identified Transdimensional Reconstructor 35368 | -3/Research | Lost 4 allies 35391 | -3/Research | Found Prototype Device 35391 | -3/Research | Identified Exp. ECM Suite 35468 | -3/Research | Identified exit to Research 35468 | -3/Research | Identified exit to Armory 35468 | -3/Research | Identified exit to Quarantine 35609 | -3/Research | Found Enh. Force Lance 35631 | -3/Research | Found Vibroblade 35634 | -3/Research | Central database locked down 35697 | -3/Research | Fabricated Exp. Utility Shielding (x1) 35755 | -3/Research | Fabricated Point Singularity Launcher (x1) 35812 | -3/Research | Fabricated Point Singularity Launcher (x1) 35870 | -3/Research | Fabricated Point Singularity Launcher (x1) 35893 | -3/Research | Build established: Wizard-Sprinter 35928 | -3/Research | Fabricated Point Singularity Launcher (x1) 35978 | -3/Research | Fabricated Exp. Hacking Suite (x1) 36114 | -3/Research | Entered another Research area 36114 | -2/Research | Warlord forces began assault on 0b10 36114 | -2/Research | Evolved 2 slots: Weapon x2 36115 | -2/Research | Identified exit to Testing 36120 | -2/Research | Met up with Warlord 36121 | -2/Research | Identified exit to Access 36121 | -2/Research | Central database locked down 36139 | -2/Research | Distinguished unit "Shockpunchers" dispatched to help 36166 | -2/Research | Spotted B-90 Cyclops 36198 | -2/Research | Lost 3 allies 36224 | -2/Research | Research machine network offline 36473 | -2/Research | Found Prototype Device 36473 | -2/Research | Identified Thermal Barrier 36545 | -2/Research | Found Enh. Force Lance 36548 | -2/Research | Found Enh. Force Lance 36551 | -2/Research | Found Enh. Force Lance 36583 | -2/Research | Borebot progress halted 36594 | -2/Research | Borebot progress halted 36743 | -2/Research | Borebot progress halted 36812 | -2/Research | Discovered exit to Testing (range 13) 36842 | -2/Research | Build established: Wizard-Mutant 36967 | -2/Research | Spotted Striker 36968 | -2/Research | Spotted Striker 37000 | -2/Research | Spotted Striker 37079 | -2/Research | Entered Access 37079 | -1/Access | Evolved 2 slots: Weapon x2 37150 | -1/Access | Found Enh. Force Lance 37205 | -1/Access | Repaired Fusion Reactor 37639 | -1/Access | Identified exit to Command 37643 | -1/Access | Enhanced Grunt warped into view, answering call for help 37645 | -1/Access | Enhanced Grunt warped into view, answering call for help 37844 | -1/Access | Fabricated Point Singularity Launcher (x1) 37892 | -1/Access | Fabricated Point Singularity Launcher (x1) 37899 | -1/Access | Found Adv. Force Booster 38122 | -1/Access | First assault squad dispatched 38405 | -1/Access | Entered Command 38447 | -1/Command | Repaired Exp. Utility Shielding? 38472 | -1/Command | Identified exit to Surface 38476 | -1/Command | Repaired Cmb. Antigrav System? 38583 | -1/Command | Spotted Alpha 7 38603 | -1/Command | Destroyed Alpha 7 38620 | -1/Command | Found Prototype Processor 38620 | -1/Command | Identified Exp. Target Analyzer 38734 | -1/Command | System corruption reached 10% 38776 | -1/Command | Lost 8 parts (2p2n1u3w) 38917 | -1/Command | Lost 3 parts (2n1w) 38962 | -1/Command | Disengaged cave seal 38962 | -1/Command | Derelicts emerged from the dark tunnel 38962 | -1/Command | Welcomed Warlord to Command 39035 | -1/Command | Lost 7 allies 39097 | -1/Command | Build established: Wizard-Gladiator 39179 | -1/Command | Lost 4 allies 39180 | -1/Command | Repaired Exp. Utility Shielding 39215 | -1/Command | Repaired Cmb. Antigrav System 39247 | -1/Command | Disengaged cave seal 39247 | -1/Command | Derelicts emerged from the dark tunnel 39407 | -1/Command | Spotted M Guard 39407 | -1/Command | Spotted M Guard 39407 | -1/Command | Spotted Combat Programmer 39409 | -1/Command | Spotted Combat Programmer 39412 | -1/Command | Destroyed Combat Programmer 39417 | -1/Command | Warlord commented on Warlord statues 39421 | -1/Command | Destroyed M Guard 39424 | -1/Command | All MAIN.C guards destroyed 39453 | -1/Command | Lost 7 allies 39544 | -1/Command | Met MAIN.C 39548 | -1/Command | Warlord shut down involuntarily 39567 | -1/Command | Destroyed MAIN.C Shell 39570 | -1/Command | MAIN.C activated Command garrisons 39573 | -1/Command | 0b10 Conduit disabled 39587 | -1/Command | Destroyed MAIN.C 39594 | -1/Command | Discovered exit to Surface (range 33) 39594 | -1/Command | Discovered exit to Surface (range 98) 39594 | -1/Command | Extracted map data and part IDs from MAIN.C's data core 39604 | -1/Command | Lost 3 parts (1p1n1u) 39611 | -1/Command | Lost 4 allies 39724 | -1/Command | Build established: Scavenger-Gladiator 39741 | -1/Command | Lost 4 allies 40237 | -1/Command | Found Vortex Chain Reactor 40240 | -1/Command | Found Zero-point Reactor 40256 | -1/Command | Found Exp. System Purifier 40328 | -1/Command | Found Exp. Armor Integrity Analyzer 40338 | -1/Command | Found AEGIS Remote Shield 40639 | -1/Command | Build established: Mutant 41319 | -1/Command | Found Corrupted Exp. Core Analyzer 41604 | -1/Command | Build established: Scavenger-Mutant 41799 | -1/Command | Attacked by Warlord forces 42185 | -1/Command | Build established: Machinist-Executioner 42787 | -1/Command | Found Exp. Core Analyzer 44015 | -1/Command | Warped through subspace to slip node 44015 | -1/Command | Discovered new exit (range 4) 44021 | -1/Command | Entered Access_0 44021 | -1/Access_0 | Destroyed A8 44024 | -1/Access_0 | Met Architect 44026 | -1/Access_0 | Architect warped through subspace 44084 | -1/Access_0 | Architect warped through subspace 44119 | -1/Access_0 | Core integrity fell below 50% 44134 | -1/Access_0 | Architect warped through subspace 44166 | -1/Access_0 | Architect warped through subspace 44206 | -1/Access_0 | Architect warped through subspace 44253 | -1/Access_0 | Architect warped through subspace 44265 | -1/Access_0 | Found Integrity Redistributor 44289 | -1/Access_0 | Architect warped through subspace 44323 | -1/Access_0 | Architect warped through subspace 44357 | -1/Access_0 | Found Prototype Device 44364 | -1/Access_0 | Identified Desublimator 44420 | -1/Access_0 | Found Desublimator 44425 | -1/Access_0 | Core integrity fell below 20% 44425 | -1/Access_0 | Found Exp. Phase Shifter 44434 | -1/Access_0 | Lost 4 parts (4u) 44466 | -1/Access_0 | Found Exp. Core Analyzer 44484 | -1/Access_0 | Architect warped through subspace 44526 | -1/Access_0 | Architect warped through subspace 44556 | -1/Access_0 | Architect warped through subspace 44593 | -1/Access_0 | Architect warped through subspace 44649 | -1/Access_0 | Architect warped through subspace 44660 | -1/Access_0 | Used Integrity Redistributor, redistributed integrity to core (+414) 44700 | -1/Access_0 | Architect warped through subspace 44722 | -1/Access_0 | Found Exp. Phase Shifter 44729 | -1/Access_0 | Lost 3 parts (1p2u) 44759 | -1/Access_0 | Architect warped through subspace 44773 | -1/Access_0 | Lost 3 parts (2u1w) 44790 | -1/Access_0 | Architect warped through subspace 44810 | -1/Access_0 | Subspace Access Node disabled 44831 | -1/Access_0 | Architect warped through subspace 44856 | -1/Access_0 | Released all parts (13) 44861 | -1/Access_0 | Lost 10 parts (1p2n2u5w) 44870 | -1/Access_0 | A6 warped into view 44905 | -1/Access_0 | Destroyed by A6 with Enhanced Force Lance Last Messages --------------- 44866_ Penetrated by Quantum Shear. 44866_ Quantum Shear penetrates Wall. 44868_ Penetrated by Quantum Shear. 44868_ Quantum Shear penetrates Earth. A6 warps into view. 44870_ A6: "I'm here! Did I miss the party? Oh hello there." 44871_ Penetrated by Quantum Shear. 44887_ Quantum Shear penetrates Wall. 44887_ Penetrated by Quantum Shear. 44889_ Quantum Shear penetrates Wall. 44893_ A6 follow-up attacks with Enh. Force Lance. 44894_ Quantum Shear penetrates Wall. 44899_ A6 follow-up attacks with Enh. Force Lance. 44900_ Penetrated by Quantum Shear. 44905_ A6 follow-up attacks with Enh. Force Lance. 44905_ Critical hit (Impale). Map ----- +----------------------------------------------------+ | ?????????????????????????????????????????????????? | | ?????????????????????????????????????????????????? | | ?????????????????????????????????????????????????? | | ?????????????????????????????????????????????????? | | ?????????????????????????????????????????????????? | | ????????????????????? ???????????????????????????? | | ?????????????????? ## ??????????????????????????? | | ?????????????????? # ????????? ???????????????? | | ??????????????????? ???????? ???????????????? | | ??????????????????? ##????? ????????????????? | | ???????????????????? #??? ?????????????????? | | ???????????????????? #?? #?????????????????? | | ????????????????????? #?? #?????????????????? | | ?????????????????????# #? #?????????????????? | | ?????????????????????# #? #?????????????????? | | ?????????????????????? ## #??????????????????? | | ????????????????????### #????????????###????? | | ????????????????????? #???????????? ????? | | ??????????????????????? #????????????? #????? | | ??????????????????????### #????????###??? #????? | | ??????????????????????# #???????## ### #????? | | ??????????????????????"" ##???????? # #????? | | ???????????????????????" ;##???????# #????? | | ???????????????????????" ;;##??####? #????# | | ??????????????????????"" ;;##?# #?# #????# | | ?????????????????????"# p@ ;;### #?# ##???# | | ?????????????????????#; ;; ### ##??# | | ?????????????????????# #; 0 #" #??? | | ?????????????????????####### ## #???? | | ???????????????????? #???? | | ??????????????????# #???? | | ??????????????????######### ;;;" #???? | | ??????????????????????????# h ##;" ###???? | | ?????????????????????????# ### "###??? | | ?????????????????????????# ## #?## #??? | | ???????????????????????? ###### #??# #### | | ??????????????????????? ?????# #??## # | | ?????????????????????? ###?????# #???### ### | | ????????????????????? #????????# #?????# #?# | | ?????????????????????##?????????# #?????# ## | | ???????????????????????????????? ?????# ## | | ???????????????????????????????? ????? ###### | | ???????????????????????????????? ????? #????? | | ???????????????????????????????? ##????#####????? | | ?????????????????????????????????????????????????? | | ?????????????????????????????????????????????????? | | ?????????????????????????????????????????????????? | | ?????????????????????????????????????????????????? | | ????????????????????????????????????????????????? | | ?????????????????????????????????????????????????# | +----------------------------------------------------+ Best States ------------- Heat Dissipation 142 Coolant Potential 65 Energy Generation 85 Energy Capacity 700 Matter Stores 800 Matter Capacity 800 Sight Range 24 Terrain Scan Density 10 Jamming Range 14 Power Amplification 40 Additional Mass Support 16 EM Shielding 2 Armor Coverage 1200 Resistance: TH 15 Core Shielding 20 Utility Shielding 90 Weapon Shielding 66 Point Defense Rating 240 Weapon Cycling 25 Melee Speed Boost 20 Phase Shifting 20 Evasion (%) 70 Targeting Accuracy 6 Melee Accuracy 6 Launcher Accuracy 40 Target Analysis 10 Core Analysis 12 Armor Integrity Analysis 50 Recoil Reduction 5 Matter Filtering 30 Force Boost 40 Offensive Hacking 94 Defensive Hacking 16 Authchip Count 6 Trap Extractor Capacity 6 Item Schematics ----------------- Hcp. Storage Unit | -10/Materials | Hacked Hacking Suite | -8/Materials | Hacked Cmb. Airjet | -8/Materials | Scanalyzed Imp. VTOL Module | -8/Materials | Scanalyzed Mni. Grenade Launcher | -8/Materials | Scanalyzed Transport Network Coupler | -8/Materials | Scanalyzed Structural Scanner | -8/Materials | Scanalyzed Imp. Trap Extractor | -7/Factory | Hacked Med. Storage Unit | -7/Factory | Scanalyzed Adv. Shield Generator | -7/Factory | Hacked Thermic Laser | -7/Factory | Hacked Exp. Cesium-ion Thruster | -7/Factory | Scanalyzed Mic. Nuclear Core | -7/Factory | Scanalyzed Adv. Hacking Suite | -7/Factory | Scanalyzed Adv. Weight Redist. System | -7/Factory | Scanalyzed Imp. Utility Shielding | -7/Factory | Scanalyzed F-cell Engine | -6/Factory | Scanalyzed Exp. System Shield | -6/Factory | Scanalyzed Centrium Medium Armor Plating | -6/Factory | Scanalyzed Matter Compressor | -6/Factory | Scanalyzed Nuclear Pulse Array | -6/Factory | Hacked Imp. Fusion Compressor | -6/Factory | Hacked Exp. Hacking Suite | -5/Factory | Hacked Adv. Matter Compressor | -5/Factory | Hacked Particle Reactor | -5/Factory | Hacked Matter Filter | -5/Factory | Scanalyzed Imp. Launcher Guidance Computer | -5/Factory | Scanalyzed Adv. Heavy Treads | -5/Factory | Hacked Exp. Matter Compressor | -4/Factory | Scanalyzed Exp. Biometal Medium Treads | -4/Factory | Hacked Exp. Utility Shielding | -4/Factory | Hacked Imp. Quantum Reactor | -4/Factory | Scanalyzed Vibroblade | -4/Factory | Hacked Assault Drone Bay | -4/Zhirov | Free Exp. Heat Sink | -4/Zhirov | Free Exp. Optical Array | -4/Zhirov | Free Imp. Arc Thrower | -4/Zhirov | Free Matter Neutralizer | -3/Research | Scanalyzed Cmb. Linear Gravjet | -3/Research | Hacked Antimissile System | -3/Research | Hacked Impulse Thruster Array | -3/Research | Hacked Point Singularity Launcher | -3/Research | Hacked Enh. Force Lance | -3/Research | Scanalyzed Hdn. Centrium Heavy Treads | -3/Research | Hacked Centrium Leg | -3/Research | Hacked Hdn. Centrium Wheel | -3/Research | Hacked Zero-point Reactor | -2/Research | Hacked Exp. Force Field | -2/Research | Hacked Exp. Biometal Leg | -2/Research | Hacked Robot Schematics ------------------ M-36 Artificer | -4/Factory | Hacked X-82 Rainmaker | -3/Research | Hacked L-61 Swordsman | -3/Research | Hacked Fabricated ------------ Y-45 Defender | x2 | -7/Factory | Preloaded Adv. Hacking Suite | x1 | -7/Factory | Preloaded Exp. Cesium-ion Thruster | x1 | -7/Factory | Authchip Adv. Hacking Suite | x1 | -7/Factory | Authchip Adv. Hacking Suite | x1 | -7/Factory | Authchip Exp. Cesium-ion Thruster | x1 | -7/Factory Adv. Hacking Suite | x1 | -6/Factory | Authchip Exp. Cesium-ion Thruster | x1 | -6/Factory | Authchip Exp. Cesium-ion Thruster | x1 | -6/Factory | Authchip Adv. Hacking Suite | x1 | -6/Factory Exp. Cesium-ion Thruster | x1 | -6/Factory | Authchip Imp. Fusion Compressor | x2 | -6/Factory Quantum Reactor | x2 | -5/Factory | Preloaded Exp. Hacking Suite | x1 | -5/Factory | Authchip Exp. Hacking Suite | x1 | -5/Factory | Authchip Exp. Hacking Suite | x1 | -5/Factory | Authchip Exp. Hacking Suite | x1 | -5/Factory | Authchip Adv. Matter Compressor | x1 | -5/Factory Exp. Hacking Suite | x1 | -4/Factory Exp. Hacking Suite | x1 | -4/Factory | Authchip Exp. Utility Shielding | x1 | -3/Research | Authchip Point Singularity Launcher | x1 | -3/Research | Authchip Point Singularity Launcher | x1 | -3/Research | Authchip Point Singularity Launcher | x1 | -3/Research | Authchip Point Singularity Launcher | x1 | -3/Research | Authchip Exp. Hacking Suite | x1 | -3/Research | Authchip Point Singularity Launcher | x1 | -1/Access | Authchip Point Singularity Launcher | x1 | -1/Access Alien Tech Used ----------------- Integrated Reactor Transdimensional Reconstructor Integrity Redistributor Achievements -------------- None Challenges ------------ None Game ------ Seed LegNeutrinoConstruct Manual? 0 Play Time 14:14:22 Cumulative 789.5 hours Start 2024.05.29 @ 10:27:47 End 2024.06.02 @ 05:35:22 Sessions 11 Manual Loads 0 Difficulty Rogue Special Mode None Game No. 325 Rogue 295 Adventurer 3 Explorer 27 Win Type - Total 17 Types 10/3/2/1/0/1/0/0/0 Lore% 92 Gallery% 97 Achievement% 86 Wizard Run 0 Options --------- Layout 2 ASCII 0 Keyboard 0 Movement Numpad Keybinds 0 Fullscreen 2 Font 24/Smallcaps Map View 50x44 Zoom Use 0% Tactical HUD 1 Map Filters NONE Filters NONE Steam 1 RUN: b659ad4e-f792-45ef-93a2-22880cc616cb